Body,Body name,Date,Transaction number,Amount,Non recoverable VAT included in amount,Supplier name,Supplier ID,Expense area,Fund type,Expense type,Category description
http://thanet.gov.uk/supplierspend,Thanet District Council,04/11/2014,371971,320.00,,A & S Self Storage Limited,ASS017,Community Services,Revenue,Services,Facilities And Mangement Serv
http://thanet.gov.uk/supplierspend,Thanet District Council,04/11/2014,372018,5400.00,,All About Asbestos Limited,ALL044,Community Services,Revenue,"Repairs,  Alter & Mtce - Build",Environmental Services
http://thanet.gov.uk/supplierspend,Thanet District Council,04/11/2014,372019,5400.00,,All About Asbestos Limited,ALL044,Community Services,Revenue,"Repairs,  Alter & Mtce - Build",Environmental Services
http://thanet.gov.uk/supplierspend,Thanet District Council,04/11/2014,372106,1100.00,,Amber Driver Training,AMB004,Operational Services,Revenue,"Equip, Furniture And Materials",Human Resources
http://thanet.gov.uk/supplierspend,Thanet District Council,04/11/2014,371682,250.00,,Awics Limited,AWI001,Community Services,Revenue,Expenses,Human Resources
http://thanet.gov.uk/supplierspend,Thanet District Council,04/11/2014,371701,263.64,,Bookpoint Limited,BOO003,Community Services,Revenue,"Equip, Furniture And Materials",Stationery
http://thanet.gov.uk/supplierspend,Thanet District Council,04/11/2014,371701,10.00,,Bookpoint Limited,BOO003,Community Services,Revenue,Miscellaneous Expenses,Stationery
http://thanet.gov.uk/supplierspend,Thanet District Council,04/11/2014,371711,1050.00,,C & F (Uk) Ltd,CFU001,Corporate Resources and S151,Balance Sheet,Other Land And Buildings-Hra,Environmental Services
http://thanet.gov.uk/supplierspend,Thanet District Council,04/11/2014,371712,7830.00,,C & F (Uk) Ltd,CFU001,Corporate Resources and S151,Balance Sheet,Other Land And Buildings-Hra,Environmental Services
http://thanet.gov.uk/supplierspend,Thanet District Council,04/11/2014,371951,580.00,,Capita Business Services Ltd,CAP001,East Kent Shared Services,Revenue,Communications & Computing,Human Resources
http://thanet.gov.uk/supplierspend,Thanet District Council,04/11/2014,371885,828.00,,Chapel Press,CHA039,Community Services,Revenue,"Print, Stat And Gen Off Exps",Facilities And Mangement Serv
http://thanet.gov.uk/supplierspend,Thanet District Council,04/11/2014,372267,283.75,,Cipfa Business Ltd,CIP008,Corporate Resources and S151,Revenue,"Print, Stat And Gen Off Exps",Financial Services
http://thanet.gov.uk/supplierspend,Thanet District Council,04/11/2014,371925,5694.90,,Computerland Uk Limited,COM045,East Kent Shared Services,Revenue,Communications & Computing,ICT
http://thanet.gov.uk/supplierspend,Thanet District Council,04/11/2014,371938,2720.04,,Computerland Uk Limited,COM045,East Kent Shared Services,Revenue,Communications & Computing,ICT
http://thanet.gov.uk/supplierspend,Thanet District Council,04/11/2014,371940,12294.26,,Coolspirit Limited,COO036,Corporate Resources and S151,Revenue,Communications & Computing,ICT
http://thanet.gov.uk/supplierspend,Thanet District Council,04/11/2014,371233,122665.63,,Dcb (Kent) Ltd,DCB001,Corporate Resources and S151,Balance Sheet,Repairs And Mtce Holding A/C,Construction-Repair And Maint
http://thanet.gov.uk/supplierspend,Thanet District Council,04/11/2014,371234,25669.62,,Dcb (Kent) Ltd,DCB001,Corporate Resources and S151,Balance Sheet,Repairs And Mtce Holding A/C,Construction-Repair And Maint
http://thanet.gov.uk/supplierspend,Thanet District Council,04/11/2014,371235,15424.44,,Dcb (Kent) Ltd,DCB001,Corporate Resources and S151,Balance Sheet,Repairs And Mtce Holding A/C,Construction-Repair And Maint
http://thanet.gov.uk/supplierspend,Thanet District Council,04/11/2014,371236,3349.50,,Dcb (Kent) Ltd,DCB001,Corporate Resources and S151,Balance Sheet,Repairs And Mtce Holding A/C,Construction-Repair And Maint
http://thanet.gov.uk/supplierspend,Thanet District Council,04/11/2014,371237,2349.01,,Dcb (Kent) Ltd,DCB001,Corporate Resources and S151,Balance Sheet,Repairs And Mtce Holding A/C,Construction-Repair And Maint
http://thanet.gov.uk/supplierspend,Thanet District Council,04/11/2014,371906,446.18,,Dennis Eagle Ltd,DEN005,Operational Services,Revenue,Direct Transport Costs,Vehicle Management
http://thanet.gov.uk/supplierspend,Thanet District Council,04/11/2014,371895,788.50,,E Saunders Margate Ltd,SAU001,Corporate Resources and S151,Balance Sheet,Repairs And Mtce Holding A/C,Construction-Repair And Maint
http://thanet.gov.uk/supplierspend,Thanet District Council,04/11/2014,371624,21700.00,,East Kent Housing Ltd,EKH002,Community Services,Revenue,Other Agencies,Housing Management
http://thanet.gov.uk/supplierspend,Thanet District Council,04/11/2014,371625,216168.00,,East Kent Housing Ltd,EKH002,Community Services,Revenue,Other Agencies,Housing Management
http://thanet.gov.uk/supplierspend,Thanet District Council,04/11/2014,372079,1120.00,,Estelle Dehon,DEH002,Corporate Resources and S151,Revenue,Services,Legal Services
http://thanet.gov.uk/supplierspend,Thanet District Council,04/11/2014,371222,2391.67,,Express By Holiday Inn,EXP007,Community Services,Revenue,Services,Human Resources
http://thanet.gov.uk/supplierspend,Thanet District Council,04/11/2014,371671,4781.37,,G Chittenden,CHI001,Operational Services,Revenue,"Repairs,  Alter & Mtce - Build",Construction-Repair And Maint
http://thanet.gov.uk/supplierspend,Thanet District Council,04/11/2014,371672,10131.07,,G Chittenden,CHI001,Operational Services,Revenue,"Repairs,  Alter & Mtce - Build",Construction-Repair And Maint
http://thanet.gov.uk/supplierspend,Thanet District Council,04/11/2014,371539,630.00,,Gee Brown,BRO035,Corporate Resources and S151,Revenue,Employee Related Schemes,Healthcare
http://thanet.gov.uk/supplierspend,Thanet District Council,04/11/2014,371956,450.00,,George Mccabe,MCC001,Operational Services,Revenue,Cleaning & Domestic Supplies,Environmental Services
http://thanet.gov.uk/supplierspend,Thanet District Council,04/11/2014,371619,5661.20,,Golightly Associates Ltd,GOL019,Community Services,Revenue,Services,Human Resources
http://thanet.gov.uk/supplierspend,Thanet District Council,04/11/2014,372262,31680.85,,H M Revenues & Customs,HMR005,Corporate Resources and S151,Balance Sheet,Hmrc-Gas Oil Duty,Government Agencies
http://thanet.gov.uk/supplierspend,Thanet District Council,04/11/2014,371955,975.00,,Hi Way Services Ltd,HIW002,Operational Services,Revenue,"Repairs,  Alter & Mtce - Build",Highway Equipment And Material
http://thanet.gov.uk/supplierspend,Thanet District Council,04/11/2014,369183,-395.16,,Hr Go Recruitment Ltd,HRG002,Operational Services,Revenue,Agency Staff,Human Resources
http://thanet.gov.uk/supplierspend,Thanet District Council,04/11/2014,369275,11606.95,,Hr Go Recruitment Ltd,HRG002,Operational Services,Revenue,Agency Staff,Human Resources
http://thanet.gov.uk/supplierspend,Thanet District Council,04/11/2014,369351,11378.21,,Hr Go Recruitment Ltd,HRG002,Operational Services,Revenue,Agency Staff,Human Resources
http://thanet.gov.uk/supplierspend,Thanet District Council,04/11/2014,369995,9576.71,,Hr Go Recruitment Ltd,HRG002,Operational Services,Revenue,Agency Staff,Human Resources
http://thanet.gov.uk/supplierspend,Thanet District Council,04/11/2014,371626,6344.79,,Hr Go Recruitment Ltd,HRG002,Operational Services,Revenue,Agency Staff,Human Resources
http://thanet.gov.uk/supplierspend,Thanet District Council,04/11/2014,371960,491.97,,Hr Go Recruitment Ltd,HRG002,Operational Services,Revenue,Agency Staff,Human Resources
http://thanet.gov.uk/supplierspend,Thanet District Council,04/11/2014,371961,1027.20,,Hr Go Recruitment Ltd,HRG002,Operational Services,Revenue,Agency Staff,Human Resources
http://thanet.gov.uk/supplierspend,Thanet District Council,04/11/2014,371962,436.54,,Hr Go Recruitment Ltd,HRG002,Community Services,Revenue,Agency Staff,Human Resources
http://thanet.gov.uk/supplierspend,Thanet District Council,04/11/2014,371963,828.72,,Hr Go Recruitment Ltd,HRG002,Operational Services,Revenue,Agency Staff,Human Resources
http://thanet.gov.uk/supplierspend,Thanet District Council,04/11/2014,371964,845.99,,Hr Go Recruitment Ltd,HRG002,Operational Services,Revenue,Agency Staff,Human Resources
http://thanet.gov.uk/supplierspend,Thanet District Council,04/11/2014,371965,819.92,,Hr Go Recruitment Ltd,HRG002,Operational Services,Revenue,Agency Staff,Human Resources
http://thanet.gov.uk/supplierspend,Thanet District Council,04/11/2014,371967,851.74,,Hr Go Recruitment Ltd,HRG002,Operational Services,Revenue,Agency Staff,Human Resources
http://thanet.gov.uk/supplierspend,Thanet District Council,04/11/2014,371969,860.20,,Hr Go Recruitment Ltd,HRG002,Operational Services,Revenue,Agency Staff,Human Resources
http://thanet.gov.uk/supplierspend,Thanet District Council,04/11/2014,371702,4221.00,,Kent County Council,KCC002,Community Services,Revenue,Services,Various Cats-Public Sector
http://thanet.gov.uk/supplierspend,Thanet District Council,04/11/2014,372078,3426.92,,Kent County Council,KCC002,Community Services,Revenue,Rents,Various Cats-Public Sector
http://thanet.gov.uk/supplierspend,Thanet District Council,04/11/2014,372109,325.00,,Locata (Housing Services) Ltd,LOC015,Community Services,Revenue,Communications & Computing,ICT
http://thanet.gov.uk/supplierspend,Thanet District Council,04/11/2014,372110,2475.00,,Locata (Housing Services) Ltd,LOC015,Community Services,Revenue,Communications & Computing,ICT
http://thanet.gov.uk/supplierspend,Thanet District Council,04/11/2014,372111,356.10,,Locata (Housing Services) Ltd,LOC015,Community Services,Revenue,Communications & Computing,ICT
http://thanet.gov.uk/supplierspend,Thanet District Council,04/11/2014,372112,613.86,,Locata (Housing Services) Ltd,LOC015,Community Services,Revenue,Communications & Computing,ICT
http://thanet.gov.uk/supplierspend,Thanet District Council,04/11/2014,372113,3500.00,,Locata (Housing Services) Ltd,LOC015,Community Services,Revenue,Communications & Computing,ICT
http://thanet.gov.uk/supplierspend,Thanet District Council,04/11/2014,372114,30979.65,,Locata (Housing Services) Ltd,LOC015,Community Services,Revenue,Communications & Computing,ICT
http://thanet.gov.uk/supplierspend,Thanet District Council,04/11/2014,372115,6000.00,,Locata (Housing Services) Ltd,LOC015,Community Services,Revenue,Communications & Computing,ICT
http://thanet.gov.uk/supplierspend,Thanet District Council,04/11/2014,372119,243.20,,Locata (Housing Services) Ltd,LOC015,Community Services,Revenue,Miscellaneous Expenses,ICT
http://thanet.gov.uk/supplierspend,Thanet District Council,04/11/2014,371881,592.85,,Mears Ltd,MEA003,Community Services,Revenue,"Repairs,  Alter & Mtce - Build",Construction-Repair And Maint
http://thanet.gov.uk/supplierspend,Thanet District Council,04/11/2014,371882,2148.41,,Mears Ltd,MEA003,Community Services,Revenue,"Repairs,  Alter & Mtce - Build",Construction-Repair And Maint
http://thanet.gov.uk/supplierspend,Thanet District Council,04/11/2014,371623,948.00,,Michael Page Int Recruitment Ltd,PAG008,Corporate Resources and S151,Revenue,Services,Human Resources
http://thanet.gov.uk/supplierspend,Thanet District Council,04/11/2014,371700,2858.63,,Michael Page Int Recruitment Ltd,PAG008,Corporate Resources and S151,Revenue,Services,Human Resources
http://thanet.gov.uk/supplierspend,Thanet District Council,04/11/2014,371760,2450.25,,Michael Page Int Recruitment Ltd,PAG008,Corporate Resources and S151,Revenue,Services,Human Resources
http://thanet.gov.uk/supplierspend,Thanet District Council,04/11/2014,372131,425.10,,Morgan Jones Ltd,MOR001,Corporate Resources and S151,Revenue,Agency Staff,Human Resources
http://thanet.gov.uk/supplierspend,Thanet District Council,04/11/2014,372271,300.00,,Mr Peter Kee,KEE008,Corporate Resources and S151,Revenue,Services,Legal Services
http://thanet.gov.uk/supplierspend,Thanet District Council,04/11/2014,372270,5000.00,,Neopost Ltd Credifon,NEO002,Community Services,Revenue,Communications & Computing,Mail Services
http://thanet.gov.uk/supplierspend,Thanet District Council,04/11/2014,371921,345.20,,O2 (Uk) Ltd,O2U001,Operational Services,Revenue,Communications & Computing,ICT
http://thanet.gov.uk/supplierspend,Thanet District Council,04/11/2014,371713,11498.41,,Ocs Group Uk Ltd T/A Fountains,OCS005,Corporate Resources and S151,Balance Sheet,Repairs And Mtce Holding A/C,Cleaning And Janitorial
http://thanet.gov.uk/supplierspend,Thanet District Council,04/11/2014,371748,812.29,,Ocs Group Uk Ltd T/A Fountains,OCS005,Operational Services,Revenue,Cleaning & Domestic Supplies,Cleaning And Janitorial
http://thanet.gov.uk/supplierspend,Thanet District Council,04/11/2014,371749,1986.29,,Ocs Group Uk Ltd T/A Fountains,OCS005,Operational Services,Revenue,Cleaning & Domestic Supplies,Cleaning And Janitorial
http://thanet.gov.uk/supplierspend,Thanet District Council,04/11/2014,371733,400.89,,Opus Energy Limited,OPU003,Community Services,Revenue,Energy Costs,Utilities
http://thanet.gov.uk/supplierspend,Thanet District Council,04/11/2014,371922,292.72,,Orange Personal Communications Ltd,ORA002,Corporate Resources and S151,Revenue,Communications & Computing,ICT
http://thanet.gov.uk/supplierspend,Thanet District Council,04/11/2014,371894,2037.70,,Playsafety Limited,PLA023,Operational Services,Revenue,"Repairs,  Alter & Mtce - Build",Health And Safety
http://thanet.gov.uk/supplierspend,Thanet District Council,04/11/2014,371669,600.00,,Priory Self Store Ltd,PRI030,Community Services,Revenue,Services,Facilities And Mangement Serv
http://thanet.gov.uk/supplierspend,Thanet District Council,04/11/2014,371673,455.36,,Priory Self Store Ltd,PRI030,Community Services,Revenue,Services,Facilities And Mangement Serv
http://thanet.gov.uk/supplierspend,Thanet District Council,04/11/2014,371103,2565.88,,Renewables First Limited,REN013,Operational Services,Revenue,Services,Maritime Services
http://thanet.gov.uk/supplierspend,Thanet District Council,04/11/2014,372117,360.00,,Response Technical Services Ltd,RES007,Community Services,Revenue,Communications & Computing,Facilities And Mangement Serv
http://thanet.gov.uk/supplierspend,Thanet District Council,04/11/2014,371957,4423.71,,Royal Mail,ROY004,Community Services,Revenue,Communications & Computing,Mail Services
http://thanet.gov.uk/supplierspend,Thanet District Council,04/11/2014,371688,953.40,,Sellick Partnership Ltd,SEL011,Corporate Resources and S151,Revenue,Agency Staff,Human Resources
http://thanet.gov.uk/supplierspend,Thanet District Council,04/11/2014,372017,900.00,,Sellick Partnership Ltd,SEL011,Community Services,Revenue,Services,Human Resources
http://thanet.gov.uk/supplierspend,Thanet District Council,04/11/2014,372055,2204.00,,Sellick Partnership Ltd,SEL011,Corporate Resources and S151,Revenue,Services,Human Resources
http://thanet.gov.uk/supplierspend,Thanet District Council,04/11/2014,372175,770.00,,Sellick Partnership Ltd,SEL011,Corporate Resources and S151,Revenue,Agency Staff,Human Resources
http://thanet.gov.uk/supplierspend,Thanet District Council,04/11/2014,371893,1500.00,,Sjr Pm Solutions Limited,SJR001,East Kent Shared Services,Revenue,Services,ICT
http://thanet.gov.uk/supplierspend,Thanet District Council,04/11/2014,371880,740.00,,Sl Environmental Limited,SLE002,Corporate Resources and S151,Balance Sheet,Other Land And Buildings-Hra,Environmental Services
http://thanet.gov.uk/supplierspend,Thanet District Council,04/11/2014,371743,362.89,,Southern Electric,SEL007,Community Services,Revenue,Energy Costs,Utilities
http://thanet.gov.uk/supplierspend,Thanet District Council,04/11/2014,371910,362.35,,Southern Water,SWA001,Community Services,Revenue,Water Services,Utilities
http://thanet.gov.uk/supplierspend,Thanet District Council,04/11/2014,371911,1673.33,,Southern Water,SWA001,Operational Services,Revenue,Water Services,Utilities
http://thanet.gov.uk/supplierspend,Thanet District Council,04/11/2014,371912,889.03,,Southern Water,SWA001,Operational Services,Revenue,Water Services,Utilities
http://thanet.gov.uk/supplierspend,Thanet District Council,04/11/2014,371914,440.65,,Southern Water,SWA001,Operational Services,Revenue,Water Services,Utilities
http://thanet.gov.uk/supplierspend,Thanet District Council,04/11/2014,371915,1418.40,,Southern Water,SWA001,Community Services,Revenue,Water Services,Utilities
http://thanet.gov.uk/supplierspend,Thanet District Council,04/11/2014,371917,1815.83,,Southern Water,SWA001,Operational Services,Revenue,Water Services,Utilities
http://thanet.gov.uk/supplierspend,Thanet District Council,04/11/2014,371151,349.00,,Ssl247 Ltd,SSL001,Community Services,Revenue,Communications & Computing,ICT
http://thanet.gov.uk/supplierspend,Thanet District Council,04/11/2014,371550,1108.00,,Ssl247 Ltd,SSL001,East Kent Shared Services,Revenue,Communications & Computing,ICT
http://thanet.gov.uk/supplierspend,Thanet District Council,04/11/2014,371218,1143.76,,Stokes Bros,STO001,Corporate Resources and S151,Balance Sheet,Plant And Equipment,Building Construction Material
http://thanet.gov.uk/supplierspend,Thanet District Council,04/11/2014,371736,437.49,,The Glenwood Hotel,GLE007,Community Services,Revenue,Services,Housing Management
http://thanet.gov.uk/supplierspend,Thanet District Council,04/11/2014,371737,3037.47,,The Glenwood Hotel,GLE007,Community Services,Revenue,Services,Housing Management
http://thanet.gov.uk/supplierspend,Thanet District Council,04/11/2014,371092,1500.00,,Uplands Engineering Ltd,UPL001,Corporate Resources and S151,Balance Sheet,Plant And Equipment,Maritime Services
http://thanet.gov.uk/supplierspend,Thanet District Council,04/11/2014,371092,547.00,,Uplands Engineering Ltd,UPL001,Operational Services,Revenue,"Repairs,  Alter & Mtce - Build",Maritime Services
http://thanet.gov.uk/supplierspend,Thanet District Council,04/11/2014,371703,8206.00,,Uplands Engineering Ltd,UPL001,Operational Services,Revenue,"Equip, Furniture And Materials",Maritime Services
http://thanet.gov.uk/supplierspend,Thanet District Council,04/11/2014,371931,650.00,,Welldata Ltd,WEL016,East Kent Shared Services,Revenue,Communications & Computing,ICT
http://thanet.gov.uk/supplierspend,Thanet District Council,04/11/2014,371706,795.00,,World'S Fair  Ltd,WOR010,Community Services,Revenue,Miscellaneous Expenses,Facilities And Mangement Serv
http://thanet.gov.uk/supplierspend,Thanet District Council,11/11/2014,372209,2875.00,,Abate (Kent) Limited,ABA007,Corporate Resources and S151,Balance Sheet,Repairs And Mtce Holding A/C,Environmental Services
http://thanet.gov.uk/supplierspend,Thanet District Council,11/11/2014,372400,3970.14,,Advanced Business Solutions,COA011,Corporate Resources and S151,Revenue,Communications & Computing,ICT
http://thanet.gov.uk/supplierspend,Thanet District Council,11/11/2014,372393,576.23,,Albion Fencing&Construction Kent Ltd,ALB005,Operational Services,Revenue,"Equip, Furniture And Materials",Building Construction Material
http://thanet.gov.uk/supplierspend,Thanet District Council,11/11/2014,372698,352.18,,Allstar Business Solutions Ltd,ALL038,Operational Services,Revenue,Direct Transport Costs,Vehicle Management
http://thanet.gov.uk/supplierspend,Thanet District Council,11/11/2014,372102,1444.32,,Andrews & Elliott,AND001,Operational Services,Revenue,"Repairs,  Alter & Mtce - Build",Cemetery And Crematorium
http://thanet.gov.uk/supplierspend,Thanet District Council,11/11/2014,372391,562.50,,Andy Morris,MOR028,Community Services,Revenue,Services,Arts And Leisure Services
http://thanet.gov.uk/supplierspend,Thanet District Council,11/11/2014,372566,8204.54,,Ats Euromaster Ltd,ATS002,Operational Services,Revenue,Direct Transport Costs,Vehicle Management
http://thanet.gov.uk/supplierspend,Thanet District Council,11/11/2014,372230,372.40,,Automail Envelopes Ltd,AUT005,East Kent Shared Services,Revenue,"Print, Stat And Gen Off Exps",Stationery
http://thanet.gov.uk/supplierspend,Thanet District Council,11/11/2014,371314,971.16,,Canon (Uk) Ltd,CAN021,Community Services,Revenue,"Equip, Furniture And Materials",Facilities And Mangement Serv
http://thanet.gov.uk/supplierspend,Thanet District Council,11/11/2014,372389,440.00,,Canterbury Christ Church University,CAN006,East Kent Shared Services,Revenue,Advertising Expenses,Various Categories
http://thanet.gov.uk/supplierspend,Thanet District Council,11/11/2014,372389,86.20,,Canterbury Christ Church University,CAN006,East Kent Shared Services,Revenue,Catering,Various Categories
http://thanet.gov.uk/supplierspend,Thanet District Council,11/11/2014,372488,11000.00,,Canterbury City Council,CAN004,Operational Services,Revenue,Services,Various Cats-Public Sector
http://thanet.gov.uk/supplierspend,Thanet District Council,11/11/2014,372465,334.47,,Capt G Tully,TUL001,Operational Services,Revenue,Services,Maritime Services
http://thanet.gov.uk/supplierspend,Thanet District Council,11/11/2014,372580,448.34,,Channel Commercials Plc,CCO001,Operational Services,Revenue,Direct Transport Costs,Vehicle Management
http://thanet.gov.uk/supplierspend,Thanet District Council,11/11/2014,372581,233.19,,Channel Commercials Plc,CCO001,Operational Services,Revenue,Direct Transport Costs,Vehicle Management
http://thanet.gov.uk/supplierspend,Thanet District Council,11/11/2014,372229,549.00,,Chartered Institute Of Housing,CHA008,Community Services,Revenue,Expenses,Human Resources
http://thanet.gov.uk/supplierspend,Thanet District Council,11/11/2014,372592,230.00,,Chatterbox Ltd,CHA006,East Kent Shared Services,Revenue,Communications & Computing,ICT
http://thanet.gov.uk/supplierspend,Thanet District Council,11/11/2014,372105,1550.00,,Clear Skies Software Ltd,CLE004,Operational Services,Revenue,Communications & Computing,ICT
http://thanet.gov.uk/supplierspend,Thanet District Council,11/11/2014,372161,8875.00,,Commercial Services Trading Ltd,COM048,Community Services,Revenue,Agency Staff,Various Cats-Public Sector
http://thanet.gov.uk/supplierspend,Thanet District Council,11/11/2014,372421,250.00,,Dover District Council,DOV001,Corporate Resources and S151,Revenue,Training,Various Cats-Public Sector
http://thanet.gov.uk/supplierspend,Thanet District Council,11/11/2014,372468,408.00,,Dover District Council,DOV001,Corporate Resources and S151,Revenue,Employee Related Schemes,Various Cats-Public Sector
http://thanet.gov.uk/supplierspend,Thanet District Council,11/11/2014,372649,575.00,,Dr Alexander Marshall,MAR100,Operational Services,Revenue,Services,Cemetery And Crematorium
http://thanet.gov.uk/supplierspend,Thanet District Council,11/11/2014,372644,2300.00,,Dr R K Chhabra,CHH001,Operational Services,Revenue,Services,Cemetery And Crematorium
http://thanet.gov.uk/supplierspend,Thanet District Council,11/11/2014,372444,289.99,,East Kent Components Ltd,EKC006,Operational Services,Revenue,Direct Transport Costs,Vehicle Management
http://thanet.gov.uk/supplierspend,Thanet District Council,11/11/2014,372368,108084.00,,East Kent Housing Ltd,EKH002,Community Services,Revenue,Other Agencies,Housing Management
http://thanet.gov.uk/supplierspend,Thanet District Council,11/11/2014,372061,2942.02,,Electoral Reform Services,ELE010,Corporate Resources and S151,Revenue,Communications & Computing,Facilities And Mangement Serv
http://thanet.gov.uk/supplierspend,Thanet District Council,11/11/2014,372061,1299.36,,Electoral Reform Services,ELE010,Corporate Resources and S151,Revenue,"Print, Stat And Gen Off Exps",Facilities And Mangement Serv
http://thanet.gov.uk/supplierspend,Thanet District Council,11/11/2014,372062,2731.87,,Electoral Reform Services,ELE010,Corporate Resources and S151,Revenue,Communications & Computing,Facilities And Mangement Serv
http://thanet.gov.uk/supplierspend,Thanet District Council,11/11/2014,372062,1252.70,,Electoral Reform Services,ELE010,Corporate Resources and S151,Revenue,"Print, Stat And Gen Off Exps",Facilities And Mangement Serv
http://thanet.gov.uk/supplierspend,Thanet District Council,11/11/2014,371093,1445.00,,Elliot Kelderis,KEL009,Community Services,Revenue,"Repairs,  Alter & Mtce - Build",Construction-Repair And Maint
http://thanet.gov.uk/supplierspend,Thanet District Council,11/11/2014,372384,386.00,,Estuary Services Ltd,EST002,Operational Services,Revenue,Cont Hire & Operating Lease,Maritime Services
http://thanet.gov.uk/supplierspend,Thanet District Council,11/11/2014,372508,250.00,,Experian Ltd,EXP004,East Kent Shared Services,Revenue,Services,Financial Services
http://thanet.gov.uk/supplierspend,Thanet District Council,11/11/2014,372707,1375.00,,Frandham Boarding Kennels,FRA010,Operational Services,Revenue,Services,Environmental Services
http://thanet.gov.uk/supplierspend,Thanet District Council,11/11/2014,372240,7553.60,,Fresh Acres Nurseries Limited,FRE017,Operational Services,Revenue,"Equip, Furniture And Materials",Horticultural
http://thanet.gov.uk/supplierspend,Thanet District Council,11/11/2014,372638,250.00,,George Mccabe,MCC001,Operational Services,Revenue,Cleaning & Domestic Supplies,Environmental Services
http://thanet.gov.uk/supplierspend,Thanet District Council,11/11/2014,372639,350.00,,George Mccabe,MCC001,Operational Services,Revenue,Cleaning & Domestic Supplies,Environmental Services
http://thanet.gov.uk/supplierspend,Thanet District Council,11/11/2014,371239,750.00,,Gulliver'S Truck Hire Limited,GUL001,Operational Services,Revenue,Cont Hire & Operating Lease,Vehicle Management
http://thanet.gov.uk/supplierspend,Thanet District Council,11/11/2014,371932,750.00,,Gulliver'S Truck Hire Limited,GUL001,Operational Services,Revenue,Cont Hire & Operating Lease,Vehicle Management
http://thanet.gov.uk/supplierspend,Thanet District Council,11/11/2014,372177,750.00,,Gulliver'S Truck Hire Limited,GUL001,Operational Services,Revenue,Cont Hire & Operating Lease,Vehicle Management
http://thanet.gov.uk/supplierspend,Thanet District Council,11/11/2014,372434,750.00,,Gulliver'S Truck Hire Limited,GUL001,Operational Services,Revenue,Cont Hire & Operating Lease,Vehicle Management
http://thanet.gov.uk/supplierspend,Thanet District Council,11/11/2014,372705,455.00,,H M Courts & Tribunal Service,HMC003,Community Services,Revenue,Services,Financial Services
http://thanet.gov.uk/supplierspend,Thanet District Council,11/11/2014,372704,2219.00,,H M Revenue & Customs,HMR004,Corporate Resources and S151,Balance Sheet,Council Dwellings,Government Agencies
http://thanet.gov.uk/supplierspend,Thanet District Council,11/11/2014,372452,439.25,,Hr Go Recruitment Ltd,HRG002,Operational Services,Revenue,Agency Staff,Human Resources
http://thanet.gov.uk/supplierspend,Thanet District Council,11/11/2014,372453,1027.20,,Hr Go Recruitment Ltd,HRG002,Operational Services,Revenue,Agency Staff,Human Resources
http://thanet.gov.uk/supplierspend,Thanet District Council,11/11/2014,372456,5818.07,,Hr Go Recruitment Ltd,HRG002,Operational Services,Revenue,Agency Staff,Human Resources
http://thanet.gov.uk/supplierspend,Thanet District Council,11/11/2014,372493,851.74,,Hr Go Recruitment Ltd,HRG002,Operational Services,Revenue,Agency Staff,Human Resources
http://thanet.gov.uk/supplierspend,Thanet District Council,11/11/2014,372586,6059.25,,Hr Go Recruitment Ltd,HRG002,Operational Services,Revenue,Agency Staff,Human Resources
http://thanet.gov.uk/supplierspend,Thanet District Council,11/11/2014,372587,506.45,,Hr Go Recruitment Ltd,HRG002,Operational Services,Revenue,Agency Staff,Human Resources
http://thanet.gov.uk/supplierspend,Thanet District Council,11/11/2014,372426,1076.31,,Hydro-Cleansing Ltd,HYD012,Operational Services,Revenue,Cleaning & Domestic Supplies,Building Construction Material
http://thanet.gov.uk/supplierspend,Thanet District Council,11/11/2014,372197,700.00,,Ifzw Maintenance Ltd,IFZ001,Operational Services,Revenue,"Equip, Furniture And Materials",Cemetery And Crematorium
http://thanet.gov.uk/supplierspend,Thanet District Council,11/11/2014,371245,106.86,,Insight Direct (Uk) Ltd,INS013,East Kent Shared Services,Revenue,Services,ICT
http://thanet.gov.uk/supplierspend,Thanet District Council,11/11/2014,371926,-341.15,,Insight Direct (Uk) Ltd,INS013,East Kent Shared Services,Revenue,"Equip, Furniture And Materials",ICT
http://thanet.gov.uk/supplierspend,Thanet District Council,11/11/2014,372701,341.15,,Insight Direct (Uk) Ltd,INS013,East Kent Shared Services,Revenue,"Equip, Furniture And Materials",ICT
http://thanet.gov.uk/supplierspend,Thanet District Council,11/11/2014,372442,2728.20,,Invicta Canterbury,INV013,Operational Services,Revenue,Direct Transport Costs,Vehicle Management
http://thanet.gov.uk/supplierspend,Thanet District Council,11/11/2014,372418,530.00,,J & J Maintenance Services Ltd,JJM001,Operational Services,Revenue,"Equip, Furniture And Materials",Cemetery And Crematorium
http://thanet.gov.uk/supplierspend,Thanet District Council,11/11/2014,372170,6000.00,,Jgp Resourcing Ltd,JGP001,Community Services,Revenue,Advertising Expenses,Human Resources
http://thanet.gov.uk/supplierspend,Thanet District Council,11/11/2014,372216,350.00,,John R Couzens,COU001,Operational Services,Revenue,"Repairs,  Alter & Mtce - Build",Construction-Repair And Maint
http://thanet.gov.uk/supplierspend,Thanet District Council,11/11/2014,372044,3465.92,,Kent County Council,KCC002,Community Services,Revenue,Miscellaneous Expenses,Various Cats-Public Sector
http://thanet.gov.uk/supplierspend,Thanet District Council,11/11/2014,372210,2175.00,,Kent County Council,KCC002,Operational Services,Revenue,Services,Various Cats-Public Sector
http://thanet.gov.uk/supplierspend,Thanet District Council,11/11/2014,372692,25753.69,,Kent County Council,KCC002,Corporate Resources and S151,Balance Sheet,Insurance Holding Account,Various Cats-Public Sector
http://thanet.gov.uk/supplierspend,Thanet District Council,11/11/2014,371262,1985.74,,Kent County Council (Kcs),KCC003,Operational Services,Revenue,Energy Costs,Facilities And Mangement Serv
http://thanet.gov.uk/supplierspend,Thanet District Council,11/11/2014,371263,1881.60,,Kent County Council (Kcs),KCC003,Operational Services,Revenue,Energy Costs,Facilities And Mangement Serv
http://thanet.gov.uk/supplierspend,Thanet District Council,11/11/2014,372045,-303.88,,Kent County Council (Kcs),KCC003,Community Services,Revenue,Energy Costs,Facilities And Mangement Serv
http://thanet.gov.uk/supplierspend,Thanet District Council,11/11/2014,372046,-1881.60,,Kent County Council (Kcs),KCC003,Operational Services,Revenue,Energy Costs,Facilities And Mangement Serv
http://thanet.gov.uk/supplierspend,Thanet District Council,11/11/2014,372047,-377.05,,Kent County Council (Kcs),KCC003,Community Services,Revenue,Energy Costs,Facilities And Mangement Serv
http://thanet.gov.uk/supplierspend,Thanet District Council,11/11/2014,372048,-1808.56,,Kent County Council (Kcs),KCC003,Operational Services,Revenue,Energy Costs,Facilities And Mangement Serv
http://thanet.gov.uk/supplierspend,Thanet District Council,11/11/2014,372049,-301.32,,Kent County Council (Kcs),KCC003,Community Services,Revenue,Energy Costs,Facilities And Mangement Serv
http://thanet.gov.uk/supplierspend,Thanet District Council,11/11/2014,372051,291.60,,Kent County Council (Kcs),KCC003,Community Services,Revenue,Energy Costs,Facilities And Mangement Serv
http://thanet.gov.uk/supplierspend,Thanet District Council,11/11/2014,372052,-1985.74,,Kent County Council (Kcs),KCC003,Operational Services,Revenue,Energy Costs,Facilities And Mangement Serv
http://thanet.gov.uk/supplierspend,Thanet District Council,11/11/2014,372054,-2259.49,,Kent County Council (Kcs),KCC003,Operational Services,Revenue,Energy Costs,Facilities And Mangement Serv
http://thanet.gov.uk/supplierspend,Thanet District Council,11/11/2014,372075,291.60,,Kent County Council (Kcs),KCC003,Community Services,Revenue,Energy Costs,Facilities And Mangement Serv
http://thanet.gov.uk/supplierspend,Thanet District Council,11/11/2014,372081,301.32,,Kent County Council (Kcs),KCC003,Community Services,Revenue,Energy Costs,Facilities And Mangement Serv
http://thanet.gov.uk/supplierspend,Thanet District Council,11/11/2014,372082,301.32,,Kent County Council (Kcs),KCC003,Community Services,Revenue,Energy Costs,Facilities And Mangement Serv
http://thanet.gov.uk/supplierspend,Thanet District Council,11/11/2014,372084,2259.49,,Kent County Council (Kcs),KCC003,Operational Services,Revenue,Energy Costs,Facilities And Mangement Serv
http://thanet.gov.uk/supplierspend,Thanet District Council,11/11/2014,372088,1808.56,,Kent County Council (Kcs),KCC003,Operational Services,Revenue,Energy Costs,Facilities And Mangement Serv
http://thanet.gov.uk/supplierspend,Thanet District Council,11/11/2014,372091,1935.27,,Kent County Council (Kcs),KCC003,Operational Services,Revenue,Energy Costs,Facilities And Mangement Serv
http://thanet.gov.uk/supplierspend,Thanet District Council,11/11/2014,372093,1664.42,,Kent County Council (Kcs),KCC003,Operational Services,Revenue,Energy Costs,Facilities And Mangement Serv
http://thanet.gov.uk/supplierspend,Thanet District Council,11/11/2014,372094,1871.48,,Kent County Council (Kcs),KCC003,Operational Services,Revenue,Energy Costs,Facilities And Mangement Serv
http://thanet.gov.uk/supplierspend,Thanet District Council,11/11/2014,372173,3584.73,,Kent County Council (Kcs),KCC003,Community Services,Revenue,"Equip, Furniture And Materials",Facilities And Mangement Serv
http://thanet.gov.uk/supplierspend,Thanet District Council,11/11/2014,372220,400.00,,Km Media Group Limited,KMM001,Community Services,Revenue,Miscellaneous Expenses,Facilities And Mangement Serv
http://thanet.gov.uk/supplierspend,Thanet District Council,11/11/2014,371889,775.48,,Landscape Supply Company,LAN014,Operational Services,Revenue,"Equip, Furniture And Materials",Horticultural
http://thanet.gov.uk/supplierspend,Thanet District Council,11/11/2014,372174,949.00,,Lexisnexis Uk,LEX002,Corporate Resources and S151,Revenue,"Print, Stat And Gen Off Exps",Human Resources
http://thanet.gov.uk/supplierspend,Thanet District Council,11/11/2014,372460,611.96,,Lyreco Uk Limited,LYR001,Operational Services,Revenue,"Equip, Furniture And Materials",Stationery
http://thanet.gov.uk/supplierspend,Thanet District Council,11/11/2014,372162,600.00,,M D Electrics,MDE001,Community Services,Revenue,"Repairs,  Alter & Mtce - Build",Building Construction Material
http://thanet.gov.uk/supplierspend,Thanet District Council,11/11/2014,372163,290.00,,M D Electrics,MDE001,Community Services,Revenue,"Repairs,  Alter & Mtce - Build",Building Construction Material
http://thanet.gov.uk/supplierspend,Thanet District Council,11/11/2014,371759,857.53,,Mears Ltd,MEA003,Community Services,Revenue,"Repairs,  Alter & Mtce - Build",Construction-Repair And Maint
http://thanet.gov.uk/supplierspend,Thanet District Council,11/11/2014,372203,265.02,,Mears Ltd,MEA003,Corporate Resources and S151,Balance Sheet,Repairs And Mtce Holding A/C,Construction-Repair And Maint
http://thanet.gov.uk/supplierspend,Thanet District Council,11/11/2014,372204,52114.75,,Mears Ltd,MEA003,Corporate Resources and S151,Balance Sheet,Repairs And Mtce Holding A/C,Construction-Repair And Maint
http://thanet.gov.uk/supplierspend,Thanet District Council,11/11/2014,372205,18856.97,,Mears Ltd,MEA003,Corporate Resources and S151,Balance Sheet,Repairs And Mtce Holding A/C,Construction-Repair And Maint
http://thanet.gov.uk/supplierspend,Thanet District Council,11/11/2014,372206,224.92,,Mears Ltd,MEA003,Corporate Resources and S151,Balance Sheet,Repairs And Mtce Holding A/C,Construction-Repair And Maint
http://thanet.gov.uk/supplierspend,Thanet District Council,11/11/2014,372207,14375.41,,Mears Ltd,MEA003,Corporate Resources and S151,Balance Sheet,Repairs And Mtce Holding A/C,Construction-Repair And Maint
http://thanet.gov.uk/supplierspend,Thanet District Council,11/11/2014,372569,507.48,,Mears Ltd,MEA003,Operational Services,Revenue,"Repairs,  Alter & Mtce - Build",Construction-Repair And Maint
http://thanet.gov.uk/supplierspend,Thanet District Council,11/11/2014,372702,61.26,,Mears Ltd,MEA003,Community Services,Revenue,"Repairs,  Alter & Mtce - Build",Construction-Repair And Maint
http://thanet.gov.uk/supplierspend,Thanet District Council,11/11/2014,372385,3917.85,,Med Clean South Ltd,MED015,Operational Services,Revenue,Cleaning & Domestic Supplies,Cleaning And Janitorial
http://thanet.gov.uk/supplierspend,Thanet District Council,11/11/2014,372080,1056.00,,Michael Page Int Recruitment Ltd,PAG008,Corporate Resources and S151,Revenue,Services,Human Resources
http://thanet.gov.uk/supplierspend,Thanet District Council,11/11/2014,372386,924.00,,Michael Page Int Recruitment Ltd,PAG008,Corporate Resources and S151,Revenue,Services,Human Resources
http://thanet.gov.uk/supplierspend,Thanet District Council,11/11/2014,372387,3267.00,,Michael Page Int Recruitment Ltd,PAG008,Corporate Resources and S151,Revenue,Services,Human Resources
http://thanet.gov.uk/supplierspend,Thanet District Council,11/11/2014,372379,3967.37,,National Express Ltd,NAT010,Community Services,Revenue,Services,Agency Payments
http://thanet.gov.uk/supplierspend,Thanet District Council,11/11/2014,372213,330.55,,Npower Limited,NPO001,Community Services,Revenue,Energy Costs,Utilities
http://thanet.gov.uk/supplierspend,Thanet District Council,11/11/2014,371751,797.69,,Ocs Group Uk Ltd T/A Fountains,OCS005,Community Services,Revenue,Cleaning & Domestic Supplies,Cleaning And Janitorial
http://thanet.gov.uk/supplierspend,Thanet District Council,11/11/2014,372375,1300.00,,Office Of Communications,OFF006,Operational Services,Revenue,Services,ICT
http://thanet.gov.uk/supplierspend,Thanet District Council,11/11/2014,372235,1500.00,,Osborne Richardson Limited,OSB009,Community Services,Revenue,Services,Human Resources
http://thanet.gov.uk/supplierspend,Thanet District Council,11/11/2014,372236,1500.00,,Osborne Richardson Limited,OSB009,Community Services,Revenue,Services,Human Resources
http://thanet.gov.uk/supplierspend,Thanet District Council,11/11/2014,371954,344.76,,Parkeon Limited,PAR063,Community Services,Revenue,"Equip, Furniture And Materials",Street And Traffic Management
http://thanet.gov.uk/supplierspend,Thanet District Council,11/11/2014,371954,681.24,,Parkeon Limited,PAR063,Operational Services,Revenue,"Equip, Furniture And Materials",Street And Traffic Management
http://thanet.gov.uk/supplierspend,Thanet District Council,11/11/2014,372227,2341.87,,Phoenix Software Ltd,PHO002,Corporate Resources and S151,Revenue,Communications & Computing,ICT
http://thanet.gov.uk/supplierspend,Thanet District Council,11/11/2014,372611,490.00,,R Cannon,CAN007,Operational Services,Revenue,Services,Maritime Services
http://thanet.gov.uk/supplierspend,Thanet District Council,11/11/2014,372171,1844.00,,Rentokil Initial Uk Ltd,REN004,Corporate Resources and S151,Balance Sheet,Repairs And Mtce Holding A/C,Environmental Services
http://thanet.gov.uk/supplierspend,Thanet District Council,11/11/2014,372564,232.50,,Results Driven Group Ltd,RES008,East Kent Shared Services,Revenue,Expenses,Education
http://thanet.gov.uk/supplierspend,Thanet District Council,11/11/2014,372703,245000.00,,Robinson Allfree,ROB005,Corporate Resources and S151,Balance Sheet,Council Dwellings,Legal Services
http://thanet.gov.uk/supplierspend,Thanet District Council,11/11/2014,372238,889.85,,Royal Mail,ROY004,Corporate Resources and S151,Revenue,Communications & Computing,Mail Services
http://thanet.gov.uk/supplierspend,Thanet District Council,11/11/2014,372457,3275.96,,Royal Mail,ROY004,Community Services,Revenue,Communications & Computing,Mail Services
http://thanet.gov.uk/supplierspend,Thanet District Council,11/11/2014,372695,2770.00,,Sarah Lippett,LIP001,Community Services,Revenue,Grants & Subscriptions,Grants
http://thanet.gov.uk/supplierspend,Thanet District Council,11/11/2014,372116,309.96,,Scan Coin Limited,SCA001,Operational Services,Revenue,"Equip, Furniture And Materials",Financial Services
http://thanet.gov.uk/supplierspend,Thanet District Council,11/11/2014,372466,400.00,,Secom Plc,SEC017,Operational Services,Revenue,"Repairs,  Alter & Mtce - Build",Facilities And Mangement Serv
http://thanet.gov.uk/supplierspend,Thanet District Council,11/11/2014,372202,900.00,,Sellick Partnership Ltd,SEL011,Community Services,Revenue,Services,Human Resources
http://thanet.gov.uk/supplierspend,Thanet District Council,11/11/2014,372590,8268.80,,Sharpe Pritchard Llp,SHA030,Corporate Resources and S151,Revenue,Services,Legal Services
http://thanet.gov.uk/supplierspend,Thanet District Council,11/11/2014,372372,1087.88,,Signway Supplies (Datchet) Limited,SIG013,Operational Services,Revenue,"Repairs,  Alter & Mtce - Build",Highway Equipment And Material
http://thanet.gov.uk/supplierspend,Thanet District Council,11/11/2014,372370,1500.00,,Sjr Pm Solutions Limited,SJR001,East Kent Shared Services,Revenue,Services,ICT
http://thanet.gov.uk/supplierspend,Thanet District Council,11/11/2014,372699,7700.00,,Solace Enterprises Ltd,SOL003,Community Services,Revenue,Services,Consultancy
http://thanet.gov.uk/supplierspend,Thanet District Council,11/11/2014,371949,886.00,,Solar Microfilm Equipment Ltd,SOL013,Operational Services,Revenue,Communications & Computing,ICT
http://thanet.gov.uk/supplierspend,Thanet District Council,11/11/2014,372700,8.50,,Solar Microfilm Equipment Ltd,SOL013,Operational Services,Revenue,Communications & Computing,ICT
http://thanet.gov.uk/supplierspend,Thanet District Council,11/11/2014,372260,351.87,,Southern Electric,SEL007,Community Services,Revenue,Energy Costs,Utilities
http://thanet.gov.uk/supplierspend,Thanet District Council,11/11/2014,372261,448.93,,Southern Electric,SEL007,Community Services,Revenue,Energy Costs,Utilities
http://thanet.gov.uk/supplierspend,Thanet District Council,11/11/2014,372073,386.62,,Southern Water,SWA001,Community Services,Revenue,Water Services,Utilities
http://thanet.gov.uk/supplierspend,Thanet District Council,11/11/2014,372074,41.77,,Southern Water,SWA001,Community Services,Revenue,Water Services,Utilities
http://thanet.gov.uk/supplierspend,Thanet District Council,11/11/2014,372074,375.91,,Southern Water,SWA001,Operational Services,Revenue,Water Services,Utilities
http://thanet.gov.uk/supplierspend,Thanet District Council,11/11/2014,372142,282.04,,Southern Water,SWA001,Operational Services,Revenue,Water Services,Utilities
http://thanet.gov.uk/supplierspend,Thanet District Council,11/11/2014,372143,429.86,,Southern Water,SWA001,Operational Services,Revenue,Water Services,Utilities
http://thanet.gov.uk/supplierspend,Thanet District Council,11/11/2014,372256,427.85,,Southern Water,SWA001,Operational Services,Revenue,Water Services,Utilities
http://thanet.gov.uk/supplierspend,Thanet District Council,11/11/2014,372211,22800.00,,Tennant Uk Cleaning Solutions Ltd,TEN006,Corporate Resources and S151,Balance Sheet,Plant And Equipment,Vehicle Management
http://thanet.gov.uk/supplierspend,Thanet District Council,11/11/2014,372037,416.66,,The Glenwood Hotel,GLE007,Community Services,Revenue,Services,Housing Management
http://thanet.gov.uk/supplierspend,Thanet District Council,11/11/2014,372038,3049.97,,The Glenwood Hotel,GLE007,Community Services,Revenue,Services,Housing Management
http://thanet.gov.uk/supplierspend,Thanet District Council,11/11/2014,372212,100502.18,,Topbond Plc,TOP010,Corporate Resources and S151,Balance Sheet,Other Land And Buildings-Hra,Construction-Repair And Maint
http://thanet.gov.uk/supplierspend,Thanet District Council,11/11/2014,372098,4500.00,,Topps Seafood Bar,TOP006,Operational Services,Revenue,Grants & Subscriptions,Facilities And Mangement Serv
http://thanet.gov.uk/supplierspend,Thanet District Council,11/11/2014,372178,52916.00,,Vestatec Automotive Distribution Ltd,VES001,Corporate Resources and S151,Balance Sheet,Plant And Equipment,Vehicle Management
http://thanet.gov.uk/supplierspend,Thanet District Council,11/11/2014,372396,359.77,,Wasteparts Uk Ltd,WAS006,Operational Services,Revenue,Direct Transport Costs,Vehicle Management
http://thanet.gov.uk/supplierspend,Thanet District Council,11/11/2014,372553,1010.10,,Westbury Industrial Supplies Ltd,WES042,Operational Services,Revenue,"Clothes, Uniforms & Laundry",Clothing
http://thanet.gov.uk/supplierspend,Thanet District Council,11/11/2014,372186,795.00,,World'S Fair  Ltd,WOR010,Community Services,Revenue,Miscellaneous Expenses,Facilities And Mangement Serv
http://thanet.gov.uk/supplierspend,Thanet District Council,11/11/2014,372571,795.00,,World'S Fair  Ltd,WOR010,Community Services,Revenue,Miscellaneous Expenses,Facilities And Mangement Serv
http://thanet.gov.uk/supplierspend,Thanet District Council,11/11/2014,372464,219.00,,Zen Internet Ltd,ZEN001,East Kent Shared Services,Revenue,Communications & Computing,ICT
http://thanet.gov.uk/supplierspend,Thanet District Council,12/11/2014,372842,-44493.71,,Thanet Leisureforce Ltd,TLF001,Corporate Resources and S151,Balance Sheet,Your Leisure Cash Collection,Arts And Leisure Services
http://thanet.gov.uk/supplierspend,Thanet District Council,17/11/2014,373024,1540.00,,H M Revenue & Customs,HMR004,Corporate Resources and S151,Balance Sheet,Council Dwellings,Government Agencies
http://thanet.gov.uk/supplierspend,Thanet District Council,18/11/2014,373168,432.72,,Allstar Business Solutions Ltd,ALL038,Operational Services,Revenue,Direct Transport Costs,Vehicle Management
http://thanet.gov.uk/supplierspend,Thanet District Council,18/11/2014,372954,605.00,,Aston Walker,AST008,Community Services,Revenue,Services,Cemetery And Crematorium
http://thanet.gov.uk/supplierspend,Thanet District Council,18/11/2014,372955,605.00,,Aston Walker,AST008,Community Services,Revenue,Services,Cemetery And Crematorium
http://thanet.gov.uk/supplierspend,Thanet District Council,18/11/2014,372950,619.44,,Bt Payment Services Ltd,BTE003,Operational Services,Revenue,Communications & Computing,ICT
http://thanet.gov.uk/supplierspend,Thanet District Council,18/11/2014,372667,2075.72,,Canon (Uk) Ltd,CAN021,Community Services,Revenue,"Equip, Furniture And Materials",Facilities And Mangement Serv
http://thanet.gov.uk/supplierspend,Thanet District Council,18/11/2014,372668,2913.48,,Canon (Uk) Ltd,CAN021,Community Services,Revenue,"Equip, Furniture And Materials",Facilities And Mangement Serv
http://thanet.gov.uk/supplierspend,Thanet District Council,18/11/2014,373161,1942.46,,Canon (Uk) Ltd,CAN021,Community Services,Revenue,"Equip, Furniture And Materials",Facilities And Mangement Serv
http://thanet.gov.uk/supplierspend,Thanet District Council,18/11/2014,372877,400.00,,Canterbury City Council,CAN004,Community Services,Revenue,Services,Various Cats-Public Sector
http://thanet.gov.uk/supplierspend,Thanet District Council,18/11/2014,372605,10750.00,,Charterhouse Voice & Data Plc,CHA060,East Kent Shared Services,Revenue,Communications & Computing,ICT
http://thanet.gov.uk/supplierspend,Thanet District Council,18/11/2014,372848,305.00,,Clear Picture Services Limited,CLE015,Corporate Resources and S151,Balance Sheet,Repairs And Mtce Holding A/C,Facilities And Mangement Serv
http://thanet.gov.uk/supplierspend,Thanet District Council,18/11/2014,372947,385.06,,Cobalt Telephone Technologies Ltd,COB002,Operational Services,Revenue,Services,ICT
http://thanet.gov.uk/supplierspend,Thanet District Council,18/11/2014,372948,800.00,,Cobalt Telephone Technologies Ltd,COB002,Operational Services,Revenue,"Equip, Furniture And Materials",ICT
http://thanet.gov.uk/supplierspend,Thanet District Council,18/11/2014,372614,1775.00,,Commercial Services Trading Ltd,COM048,Community Services,Revenue,Agency Staff,Various Cats-Public Sector
http://thanet.gov.uk/supplierspend,Thanet District Council,18/11/2014,372858,3122.00,,Commercial Services Trading Ltd,COM048,Chief Executive,Revenue,Cont Hire & Operating Lease,Various Cats-Public Sector
http://thanet.gov.uk/supplierspend,Thanet District Council,18/11/2014,372608,18264.25,,Crown Estate Re Chesterton Humberts,CRO022,Operational Services,Revenue,Rents,Maritime Services
http://thanet.gov.uk/supplierspend,Thanet District Council,18/11/2014,372609,23733.50,,Crown Estate Re Chesterton Humberts,CRO022,Operational Services,Revenue,Rents,Maritime Services
http://thanet.gov.uk/supplierspend,Thanet District Council,18/11/2014,372610,4435.75,,Crown Estate Re Chesterton Humberts,CRO022,Operational Services,Revenue,Rents,Maritime Services
http://thanet.gov.uk/supplierspend,Thanet District Council,18/11/2014,373139,125000.00,,Daniel & Edwards Solicitors,DAN011,Corporate Resources and S151,Balance Sheet,Council Dwellings,Non Trade Payee
http://thanet.gov.uk/supplierspend,Thanet District Council,18/11/2014,372572,1364.00,,Disclosure And Barring Service,DIS017,Community Services,Revenue,"Equip, Furniture And Materials",Human Resources
http://thanet.gov.uk/supplierspend,Thanet District Council,18/11/2014,373004,900.00,,Dotted Eyes Ltd,DOT001,East Kent Shared Services,Revenue,Communications & Computing,ICT
http://thanet.gov.uk/supplierspend,Thanet District Council,18/11/2014,373002,360.00,,Dover Counselling Centre,DOV014,Corporate Resources and S151,Revenue,Employee Related Schemes,Special Community Care
http://thanet.gov.uk/supplierspend,Thanet District Council,18/11/2014,372467,560.00,,Dover District Council,DOV001,East Kent Shared Services,Revenue,Employee Related Schemes,Various Cats-Public Sector
http://thanet.gov.uk/supplierspend,Thanet District Council,18/11/2014,372469,388.00,,Dover District Council,DOV001,East Kent Shared Services,Revenue,Employee Related Schemes,Various Cats-Public Sector
http://thanet.gov.uk/supplierspend,Thanet District Council,18/11/2014,372619,3371.51,,E Saunders Margate Ltd,SAU001,Operational Services,Revenue,"Repairs,  Alter & Mtce - Build",Construction-Repair And Maint
http://thanet.gov.uk/supplierspend,Thanet District Council,18/11/2014,372621,2299.50,,E Saunders Margate Ltd,SAU001,Corporate Resources and S151,Balance Sheet,Repairs And Mtce Holding A/C,Construction-Repair And Maint
http://thanet.gov.uk/supplierspend,Thanet District Council,18/11/2014,372561,587.31,,Ernest Doe & Sons Ltd,ERN003,Operational Services,Revenue,"Equip, Furniture And Materials",Horticultural
http://thanet.gov.uk/supplierspend,Thanet District Council,18/11/2014,372946,2109.00,,Falco Uk Ltd,FAL006,Community Services,Revenue,"Repairs,  Alter & Mtce - Build",Vehicle Management
http://thanet.gov.uk/supplierspend,Thanet District Council,18/11/2014,372480,930.00,,Florence Court Hotel,FLO003,Community Services,Revenue,Services,Housing Management
http://thanet.gov.uk/supplierspend,Thanet District Council,18/11/2014,372481,1395.00,,Florence Court Hotel,FLO003,Community Services,Revenue,Services,Housing Management
http://thanet.gov.uk/supplierspend,Thanet District Council,18/11/2014,372482,930.00,,Florence Court Hotel,FLO003,Community Services,Revenue,Services,Housing Management
http://thanet.gov.uk/supplierspend,Thanet District Council,18/11/2014,372483,930.00,,Florence Court Hotel,FLO003,Community Services,Revenue,Services,Housing Management
http://thanet.gov.uk/supplierspend,Thanet District Council,18/11/2014,372484,930.00,,Florence Court Hotel,FLO003,Community Services,Revenue,Services,Housing Management
http://thanet.gov.uk/supplierspend,Thanet District Council,18/11/2014,372485,930.00,,Florence Court Hotel,FLO003,Community Services,Revenue,Services,Housing Management
http://thanet.gov.uk/supplierspend,Thanet District Council,18/11/2014,372486,930.00,,Florence Court Hotel,FLO003,Community Services,Revenue,Services,Housing Management
http://thanet.gov.uk/supplierspend,Thanet District Council,18/11/2014,372487,360.00,,Florence Court Hotel,FLO003,Community Services,Revenue,Services,Housing Management
http://thanet.gov.uk/supplierspend,Thanet District Council,18/11/2014,372637,234.16,,G & G Forklifts,GGF001,Operational Services,Revenue,"Equip, Furniture And Materials",Vehicle Management
http://thanet.gov.uk/supplierspend,Thanet District Council,18/11/2014,372422,140.00,,Gerlack & Thorne Ltd,GER001,Community Services,Revenue,"Repairs,  Alter & Mtce - Build",Construction-Repair And Maint
http://thanet.gov.uk/supplierspend,Thanet District Council,18/11/2014,372422,140.00,,Gerlack & Thorne Ltd,GER001,Operational Services,Revenue,"Repairs,  Alter & Mtce - Build",Construction-Repair And Maint
http://thanet.gov.uk/supplierspend,Thanet District Council,18/11/2014,372559,572.00,,Goodwins,GOO001,Operational Services,Revenue,"Equip, Furniture And Materials",Horticultural
http://thanet.gov.uk/supplierspend,Thanet District Council,18/11/2014,373135,2450.00,,H M Revenue & Customs,HMR004,Corporate Resources and S151,Balance Sheet,Collection Fund,Government Agencies
http://thanet.gov.uk/supplierspend,Thanet District Council,18/11/2014,373140,1300.00,,H M Revenue & Customs,HMR004,Corporate Resources and S151,Balance Sheet,Council Dwellings,Government Agencies
http://thanet.gov.uk/supplierspend,Thanet District Council,18/11/2014,372377,362.85,,Hands On Suppliers Ltd,HAN007,Operational Services,Revenue,"Equip, Furniture And Materials",Clothing
http://thanet.gov.uk/supplierspend,Thanet District Council,18/11/2014,373150,44914.32,,Heath Lambert Limited (Client Money),HEA011,Corporate Resources and S151,Balance Sheet,Insurance Holding Account,Financial Services
http://thanet.gov.uk/supplierspend,Thanet District Council,18/11/2014,373151,2687.10,,Heath Lambert Limited (Client Money),HEA011,Corporate Resources and S151,Balance Sheet,Insurance Holding Account,Financial Services
http://thanet.gov.uk/supplierspend,Thanet District Council,18/11/2014,373006,32070.42,,Holbrook Revell Electrical Ltd,HOL015,Corporate Resources and S151,Balance Sheet,Plant And Equipment,Building Construction Material
http://thanet.gov.uk/supplierspend,Thanet District Council,18/11/2014,372454,442.52,,Hr Go Recruitment Ltd,HRG002,Community Services,Revenue,Agency Staff,Human Resources
http://thanet.gov.uk/supplierspend,Thanet District Council,18/11/2014,372970,394.68,,Hr Go Recruitment Ltd,HRG002,Community Services,Revenue,Agency Staff,Human Resources
http://thanet.gov.uk/supplierspend,Thanet District Council,18/11/2014,372388,2800.00,,Idox Software  Limited,IDO001,Community Services,Revenue,Communications & Computing,ICT
http://thanet.gov.uk/supplierspend,Thanet District Council,18/11/2014,372579,750.00,,Imray Laurie Norie & Wilson Ltd,IMR001,Operational Services,Revenue,Miscellaneous Expenses,Facilities And Mangement Serv
http://thanet.gov.uk/supplierspend,Thanet District Council,18/11/2014,372684,27146.17,,J Rospo Building Contractors,ROS001,Corporate Resources and S151,Balance Sheet,Other Land And Buildings-Hra,Construction-Repair And Maint
http://thanet.gov.uk/supplierspend,Thanet District Council,18/11/2014,373008,14973.04,,J Rospo Building Contractors,ROS001,Corporate Resources and S151,Balance Sheet,Rechargeable Works,Construction-Repair And Maint
http://thanet.gov.uk/supplierspend,Thanet District Council,18/11/2014,372983,400.00,,Jane Chapman,CHA066,Corporate Resources and S151,Revenue,Training,Human Resources
http://thanet.gov.uk/supplierspend,Thanet District Council,18/11/2014,372100,71102.71,,Jenner (Contractors) Ltd,JEN002,Corporate Resources and S151,Balance Sheet,Council Dwellings,Construction-Repair And Maint
http://thanet.gov.uk/supplierspend,Thanet District Council,18/11/2014,372101,50388.59,,Jenner (Contractors) Ltd,JEN002,Corporate Resources and S151,Balance Sheet,Council Dwellings,Construction-Repair And Maint
http://thanet.gov.uk/supplierspend,Thanet District Council,18/11/2014,373132,590.64,,John Gale,GAL001,Corporate Resources and S151,Balance Sheet,Capital Exp-Non Council Assets,Grants
http://thanet.gov.uk/supplierspend,Thanet District Council,18/11/2014,372867,410.77,,John Parker & Son Ltd,PAR001,Operational Services,Revenue,"Repairs,  Alter & Mtce - Build",Building Construction Material
http://thanet.gov.uk/supplierspend,Thanet District Council,18/11/2014,373025,258304.00,,Kent & Medway Towns Fire Authority,KMT001,Corporate Resources and S151,Balance Sheet,Collection Fund - Preceptors,Various Cats-Public Sector
http://thanet.gov.uk/supplierspend,Thanet District Council,18/11/2014,372588,1439.56,,Kent County Council,KCC002,Operational Services,Revenue,"Repairs,  Alter & Mtce - Build",Various Cats-Public Sector
http://thanet.gov.uk/supplierspend,Thanet District Council,18/11/2014,373027,3812183.00,,Kent County Council,KCC022,Corporate Resources and S151,Balance Sheet,Collection Fund - Preceptors,Various Cats-Public Sector
http://thanet.gov.uk/supplierspend,Thanet District Council,18/11/2014,372420,245.81,,Kent County Council (Kcs),KCC003,Community Services,Revenue,"Equip, Furniture And Materials",Facilities And Mangement Serv
http://thanet.gov.uk/supplierspend,Thanet District Council,18/11/2014,372951,274.82,,Kent County Council (Kcs),KCC003,Community Services,Revenue,"Repairs,  Alter & Mtce - Build",Facilities And Mangement Serv
http://thanet.gov.uk/supplierspend,Thanet District Council,18/11/2014,372952,406.19,,Kent County Council (Kcs),KCC003,Operational Services,Revenue,"Repairs,  Alter & Mtce - Build",Facilities And Mangement Serv
http://thanet.gov.uk/supplierspend,Thanet District Council,18/11/2014,372989,940.38,,Kent County Council (Kcs),KCC003,Community Services,Revenue,Energy Costs,Facilities And Mangement Serv
http://thanet.gov.uk/supplierspend,Thanet District Council,18/11/2014,372990,1990.20,,Kent County Council (Kcs),KCC003,Operational Services,Revenue,Energy Costs,Facilities And Mangement Serv
http://thanet.gov.uk/supplierspend,Thanet District Council,18/11/2014,372991,652.28,,Kent County Council (Kcs),KCC003,Community Services,Revenue,Energy Costs,Facilities And Mangement Serv
http://thanet.gov.uk/supplierspend,Thanet District Council,18/11/2014,372992,756.45,,Kent County Council (Kcs),KCC003,Community Services,Revenue,Energy Costs,Facilities And Mangement Serv
http://thanet.gov.uk/supplierspend,Thanet District Council,18/11/2014,373026,482313.50,,Kent Police & Crime Commissioner,KPA003,Corporate Resources and S151,Balance Sheet,Collection Fund - Preceptors,Various Cats-Public Sector
http://thanet.gov.uk/supplierspend,Thanet District Council,18/11/2014,372225,3500.00,,Kent Wildlife Trust,KEN007,Community Services,Revenue,Grants & Subscriptions,Various Categories
http://thanet.gov.uk/supplierspend,Thanet District Council,18/11/2014,372576,425.00,,Landscape Supply Company,LAN014,Operational Services,Revenue,"Equip, Furniture And Materials",Horticultural
http://thanet.gov.uk/supplierspend,Thanet District Council,18/11/2014,372966,2915.38,,Level 3 Communications (Uk) Ltd,LEV005,Corporate Resources and S151,Balance Sheet,Telephone Holding Account,ICT
http://thanet.gov.uk/supplierspend,Thanet District Council,18/11/2014,372645,1782.50,,Ling Metals Limited,LIN004,Operational Services,Revenue,Cleaning & Domestic Supplies,Environmental Services
http://thanet.gov.uk/supplierspend,Thanet District Council,18/11/2014,372846,376.00,,Lyreco Uk Limited,LYR001,Community Services,Revenue,"Print, Stat And Gen Off Exps",Stationery
http://thanet.gov.uk/supplierspend,Thanet District Council,18/11/2014,372606,680.00,,M D Electrics,MDE001,Operational Services,Revenue,"Equip, Furniture And Materials",Building Construction Material
http://thanet.gov.uk/supplierspend,Thanet District Council,18/11/2014,372683,5596.00,,Mag:Net Solutions Limited,MAG005,East Kent Shared Services,Revenue,Services,ICT
http://thanet.gov.uk/supplierspend,Thanet District Council,18/11/2014,373141,20000.00,,Margate Town Team,MTO001,Community Services,Revenue,Grants & Subscriptions,Grants
http://thanet.gov.uk/supplierspend,Thanet District Council,18/11/2014,373138,210000.00,,Marsden Duncan Solicitors,MAR084,Corporate Resources and S151,Balance Sheet,Council Dwellings,Non Trade Payee
http://thanet.gov.uk/supplierspend,Thanet District Council,18/11/2014,372973,300.00,,Maxwells Grounds Maintenance Ltd,MAX002,Community Services,Revenue,"Repairs,  Alter & Mtce - Build",Construction-Repair And Maint
http://thanet.gov.uk/supplierspend,Thanet District Council,18/11/2014,371758,570.39,,Mears Ltd,MEA003,Community Services,Revenue,"Repairs,  Alter & Mtce - Build",Construction-Repair And Maint
http://thanet.gov.uk/supplierspend,Thanet District Council,18/11/2014,373009,6460.74,,Mears Ltd,MEA003,Corporate Resources and S151,Balance Sheet,Repairs And Mtce Holding A/C,Construction-Repair And Maint
http://thanet.gov.uk/supplierspend,Thanet District Council,18/11/2014,373010,8485.94,,Mears Ltd,MEA003,Corporate Resources and S151,Balance Sheet,Repairs And Mtce Holding A/C,Construction-Repair And Maint
http://thanet.gov.uk/supplierspend,Thanet District Council,18/11/2014,373011,980.57,,Mears Ltd,MEA003,Corporate Resources and S151,Balance Sheet,Repairs And Mtce Holding A/C,Construction-Repair And Maint
http://thanet.gov.uk/supplierspend,Thanet District Council,18/11/2014,373012,14875.29,,Mears Ltd,MEA003,Corporate Resources and S151,Balance Sheet,Repairs And Mtce Holding A/C,Construction-Repair And Maint
http://thanet.gov.uk/supplierspend,Thanet District Council,18/11/2014,373144,380.00,,Miles & Barr Property Mgmt & Lettings,MIL025,Community Services,Revenue,Services,Rent Deposits
http://thanet.gov.uk/supplierspend,Thanet District Council,18/11/2014,372666,318.83,,Morgan Jones Ltd,MOR001,Corporate Resources and S151,Revenue,Agency Staff,Human Resources
http://thanet.gov.uk/supplierspend,Thanet District Council,18/11/2014,373046,635.84,,Mr Darren Osborne,OSB008,Community Services,Revenue,Cleaning & Domestic Supplies,Cleaning And Janitorial
http://thanet.gov.uk/supplierspend,Thanet District Council,18/11/2014,373046,30.00,,Mr Darren Osborne,OSB008,Operational Services,Revenue,Cleaning & Domestic Supplies,Cleaning And Janitorial
http://thanet.gov.uk/supplierspend,Thanet District Council,18/11/2014,372063,237.44,,Nauticalia Limited,NAU001,Community Services,Revenue,"Equip, Furniture And Materials",Stationery
http://thanet.gov.uk/supplierspend,Thanet District Council,18/11/2014,372578,605.60,,Ne Signs Ltd,NES004,Operational Services,Revenue,"Repairs,  Alter & Mtce - Build",Highway Equipment And Material
http://thanet.gov.uk/supplierspend,Thanet District Council,18/11/2014,373162,2000.00,,Neopost Ltd Credifon,NEO002,Community Services,Revenue,Communications & Computing,Mail Services
http://thanet.gov.uk/supplierspend,Thanet District Council,18/11/2014,373017,322.02,,Npower Limited,NPO001,Community Services,Revenue,Energy Costs,Utilities
http://thanet.gov.uk/supplierspend,Thanet District Council,18/11/2014,371714,258.17,,Ocs Group Uk Ltd T/A Fountains,OCS005,Community Services,Revenue,Cleaning & Domestic Supplies,Cleaning And Janitorial
http://thanet.gov.uk/supplierspend,Thanet District Council,18/11/2014,372414,297.64,,Orbis Protect Limited,ORB009,Community Services,Revenue,Services,Facilities And Mangement Serv
http://thanet.gov.uk/supplierspend,Thanet District Council,18/11/2014,372237,1500.00,,Osborne Richardson Limited,OSB009,Community Services,Revenue,Services,Human Resources
http://thanet.gov.uk/supplierspend,Thanet District Council,18/11/2014,372584,1500.00,,Osborne Richardson Limited,OSB009,Community Services,Revenue,Services,Human Resources
http://thanet.gov.uk/supplierspend,Thanet District Council,18/11/2014,372589,27000.00,,Paultons Park Limited,PAU004,Corporate Resources and S151,Balance Sheet,Heritage Assets,Arts And Leisure Services
http://thanet.gov.uk/supplierspend,Thanet District Council,18/11/2014,372607,6982.92,,Phoenix Software Ltd,PHO002,Corporate Resources and S151,Revenue,Communications & Computing,ICT
http://thanet.gov.uk/supplierspend,Thanet District Council,18/11/2014,373054,225.00,,Phoenix Software Ltd,PHO002,Corporate Resources and S151,Revenue,Communications & Computing,ICT
http://thanet.gov.uk/supplierspend,Thanet District Council,18/11/2014,373059,366.92,,Phoenix Software Ltd,PHO002,East Kent Shared Services,Revenue,Communications & Computing,ICT
http://thanet.gov.uk/supplierspend,Thanet District Council,18/11/2014,372398,218.00,,Playsafety Limited,PLA023,Corporate Resources and S151,Revenue,"Equip, Furniture And Materials",Health And Safety
http://thanet.gov.uk/supplierspend,Thanet District Council,18/11/2014,372869,1310.00,,Rackspace Limited,RAC006,East Kent Shared Services,Revenue,Communications & Computing,ICT
http://thanet.gov.uk/supplierspend,Thanet District Council,18/11/2014,372167,750.00,,Rics,RIC007,Community Services,Revenue,"Print, Stat And Gen Off Exps",Financial Services
http://thanet.gov.uk/supplierspend,Thanet District Council,18/11/2014,372860,2224.80,,Rostrvm Solutions Ltd,ROS019,East Kent Shared Services,Revenue,Communications & Computing,ICT
http://thanet.gov.uk/supplierspend,Thanet District Council,18/11/2014,372967,1945.26,,Royal Mail,ROY004,Community Services,Revenue,Communications & Computing,Mail Services
http://thanet.gov.uk/supplierspend,Thanet District Council,18/11/2014,372382,737.80,,Sellick Partnership Ltd,SEL011,Corporate Resources and S151,Revenue,Agency Staff,Human Resources
http://thanet.gov.uk/supplierspend,Thanet District Council,18/11/2014,372392,542.50,,Sellick Partnership Ltd,SEL011,Corporate Resources and S151,Revenue,Agency Staff,Human Resources
http://thanet.gov.uk/supplierspend,Thanet District Council,18/11/2014,372459,1580.50,,Sellick Partnership Ltd,SEL011,Corporate Resources and S151,Revenue,Services,Human Resources
http://thanet.gov.uk/supplierspend,Thanet District Council,18/11/2014,372583,900.00,,Sellick Partnership Ltd,SEL011,Community Services,Revenue,Services,Human Resources
http://thanet.gov.uk/supplierspend,Thanet District Council,18/11/2014,372854,770.00,,Sellick Partnership Ltd,SEL011,Corporate Resources and S151,Revenue,Agency Staff,Human Resources
http://thanet.gov.uk/supplierspend,Thanet District Council,18/11/2014,372976,2001.00,,Sellick Partnership Ltd,SEL011,Corporate Resources and S151,Revenue,Services,Human Resources
http://thanet.gov.uk/supplierspend,Thanet District Council,18/11/2014,372982,529.60,,Sellick Partnership Ltd,SEL011,Community Services,Revenue,Services,Human Resources
http://thanet.gov.uk/supplierspend,Thanet District Council,18/11/2014,372847,1500.00,,Sjr Pm Solutions Limited,SJR001,East Kent Shared Services,Revenue,Services,ICT
http://thanet.gov.uk/supplierspend,Thanet District Council,18/11/2014,372217,7760.87,,Solace Enterprises Ltd,SOL003,East Kent Shared Services,Revenue,Advertising Expenses,Consultancy
http://thanet.gov.uk/supplierspend,Thanet District Council,18/11/2014,372145,264.73,,Southern Electric,SEL007,Community Services,Revenue,Energy Costs,Utilities
http://thanet.gov.uk/supplierspend,Thanet District Council,18/11/2014,372920,224.47,,Southern Electric,SEL007,Operational Services,Revenue,Energy Costs,Utilities
http://thanet.gov.uk/supplierspend,Thanet District Council,18/11/2014,372925,299.70,,Southern Electric,SEL007,Operational Services,Revenue,Energy Costs,Utilities
http://thanet.gov.uk/supplierspend,Thanet District Council,18/11/2014,372926,244.75,,Southern Electric,SEL007,Operational Services,Revenue,Energy Costs,Utilities
http://thanet.gov.uk/supplierspend,Thanet District Council,18/11/2014,372932,5.19,,Southern Electric,SEL007,Community Services,Revenue,Energy Costs,Utilities
http://thanet.gov.uk/supplierspend,Thanet District Council,18/11/2014,372932,539.19,,Southern Electric,SEL007,Operational Services,Revenue,Energy Costs,Utilities
http://thanet.gov.uk/supplierspend,Thanet District Council,18/11/2014,372937,-264.73,,Southern Electric,SEL007,Community Services,Revenue,Energy Costs,Utilities
http://thanet.gov.uk/supplierspend,Thanet District Council,18/11/2014,372939,277.77,,Southern Electric,SEL007,Community Services,Revenue,Energy Costs,Utilities
http://thanet.gov.uk/supplierspend,Thanet District Council,18/11/2014,372509,632.23,,Southern Water,SWA001,Operational Services,Revenue,Water Services,Utilities
http://thanet.gov.uk/supplierspend,Thanet District Council,18/11/2014,372511,683.01,,Southern Water,SWA001,Operational Services,Revenue,Water Services,Utilities
http://thanet.gov.uk/supplierspend,Thanet District Council,18/11/2014,372519,1591.35,,Southern Water,SWA001,Operational Services,Revenue,Water Services,Utilities
http://thanet.gov.uk/supplierspend,Thanet District Council,18/11/2014,372520,2749.04,,Southern Water,SWA001,Operational Services,Revenue,Water Services,Utilities
http://thanet.gov.uk/supplierspend,Thanet District Council,18/11/2014,372676,349.84,,Southern Water,SWA001,Operational Services,Revenue,Water Services,Utilities
http://thanet.gov.uk/supplierspend,Thanet District Council,18/11/2014,372942,347.10,,Southern Water,SWA001,Operational Services,Revenue,Water Services,Utilities
http://thanet.gov.uk/supplierspend,Thanet District Council,18/11/2014,372943,257.05,,Southern Water,SWA001,Operational Services,Revenue,Water Services,Utilities
http://thanet.gov.uk/supplierspend,Thanet District Council,18/11/2014,372995,490.00,,Stagecoach Services Limited,STA023,Corporate Resources and S151,Balance Sheet,Staff Bus Permits Holding A/C,Public Transport
http://thanet.gov.uk/supplierspend,Thanet District Council,18/11/2014,373013,490.00,,Stagecoach Services Limited,STA023,Corporate Resources and S151,Balance Sheet,Staff Bus Permits Holding A/C,Public Transport
http://thanet.gov.uk/supplierspend,Thanet District Council,18/11/2014,373014,490.00,,Stagecoach Services Limited,STA023,Corporate Resources and S151,Balance Sheet,Staff Bus Permits Holding A/C,Public Transport
http://thanet.gov.uk/supplierspend,Thanet District Council,18/11/2014,373015,490.00,,Stagecoach Services Limited,STA023,Corporate Resources and S151,Balance Sheet,Staff Bus Permits Holding A/C,Public Transport
http://thanet.gov.uk/supplierspend,Thanet District Council,18/11/2014,373016,490.00,,Stagecoach Services Limited,STA023,Corporate Resources and S151,Balance Sheet,Staff Bus Permits Holding A/C,Public Transport
http://thanet.gov.uk/supplierspend,Thanet District Council,18/11/2014,372528,2299.00,,Swale Heating Ltd,SWA006,Corporate Resources and S151,Balance Sheet,Repairs And Mtce Holding A/C,Building Construction Material
http://thanet.gov.uk/supplierspend,Thanet District Council,18/11/2014,372529,1410.00,,Swale Heating Ltd,SWA006,Corporate Resources and S151,Balance Sheet,Repairs And Mtce Holding A/C,Building Construction Material
http://thanet.gov.uk/supplierspend,Thanet District Council,18/11/2014,372530,1878.35,,Swale Heating Ltd,SWA006,Corporate Resources and S151,Balance Sheet,Repairs And Mtce Holding A/C,Building Construction Material
http://thanet.gov.uk/supplierspend,Thanet District Council,18/11/2014,372531,1595.00,,Swale Heating Ltd,SWA006,Corporate Resources and S151,Balance Sheet,Repairs And Mtce Holding A/C,Building Construction Material
http://thanet.gov.uk/supplierspend,Thanet District Council,18/11/2014,372532,2180.85,,Swale Heating Ltd,SWA006,Corporate Resources and S151,Balance Sheet,Repairs And Mtce Holding A/C,Building Construction Material
http://thanet.gov.uk/supplierspend,Thanet District Council,18/11/2014,372533,2149.70,,Swale Heating Ltd,SWA006,Corporate Resources and S151,Balance Sheet,Repairs And Mtce Holding A/C,Building Construction Material
http://thanet.gov.uk/supplierspend,Thanet District Council,18/11/2014,372534,2321.55,,Swale Heating Ltd,SWA006,Corporate Resources and S151,Balance Sheet,Repairs And Mtce Holding A/C,Building Construction Material
http://thanet.gov.uk/supplierspend,Thanet District Council,18/11/2014,372535,1677.35,,Swale Heating Ltd,SWA006,Corporate Resources and S151,Balance Sheet,Repairs And Mtce Holding A/C,Building Construction Material
http://thanet.gov.uk/supplierspend,Thanet District Council,18/11/2014,372536,1546.70,,Swale Heating Ltd,SWA006,Corporate Resources and S151,Balance Sheet,Repairs And Mtce Holding A/C,Building Construction Material
http://thanet.gov.uk/supplierspend,Thanet District Council,18/11/2014,372537,2180.85,,Swale Heating Ltd,SWA006,Corporate Resources and S151,Balance Sheet,Repairs And Mtce Holding A/C,Building Construction Material
http://thanet.gov.uk/supplierspend,Thanet District Council,18/11/2014,372538,2074.32,,Swale Heating Ltd,SWA006,Corporate Resources and S151,Balance Sheet,Repairs And Mtce Holding A/C,Building Construction Material
http://thanet.gov.uk/supplierspend,Thanet District Council,18/11/2014,372539,1863.27,,Swale Heating Ltd,SWA006,Corporate Resources and S151,Balance Sheet,Repairs And Mtce Holding A/C,Building Construction Material
http://thanet.gov.uk/supplierspend,Thanet District Council,18/11/2014,372540,1677.35,,Swale Heating Ltd,SWA006,Corporate Resources and S151,Balance Sheet,Repairs And Mtce Holding A/C,Building Construction Material
http://thanet.gov.uk/supplierspend,Thanet District Council,18/11/2014,372541,1878.35,,Swale Heating Ltd,SWA006,Corporate Resources and S151,Balance Sheet,Repairs And Mtce Holding A/C,Building Construction Material
http://thanet.gov.uk/supplierspend,Thanet District Council,18/11/2014,372542,2131.61,,Swale Heating Ltd,SWA006,Corporate Resources and S151,Balance Sheet,Repairs And Mtce Holding A/C,Building Construction Material
http://thanet.gov.uk/supplierspend,Thanet District Council,18/11/2014,372543,1546.70,,Swale Heating Ltd,SWA006,Corporate Resources and S151,Balance Sheet,Repairs And Mtce Holding A/C,Building Construction Material
http://thanet.gov.uk/supplierspend,Thanet District Council,18/11/2014,372544,1747.70,,Swale Heating Ltd,SWA006,Corporate Resources and S151,Balance Sheet,Repairs And Mtce Holding A/C,Building Construction Material
http://thanet.gov.uk/supplierspend,Thanet District Council,18/11/2014,372545,1677.35,,Swale Heating Ltd,SWA006,Corporate Resources and S151,Balance Sheet,Repairs And Mtce Holding A/C,Building Construction Material
http://thanet.gov.uk/supplierspend,Thanet District Council,18/11/2014,372640,24946.74,,Swale Heating Ltd,SWA006,Corporate Resources and S151,Balance Sheet,Repairs And Mtce Holding A/C,Building Construction Material
http://thanet.gov.uk/supplierspend,Thanet District Council,18/11/2014,372677,763.36,,Swale Heating Ltd,SWA006,Corporate Resources and S151,Balance Sheet,Repairs And Mtce Holding A/C,Building Construction Material
http://thanet.gov.uk/supplierspend,Thanet District Council,18/11/2014,372132,245.00,,Swale Shutter & Door Services Ltd,SWA013,Operational Services,Revenue,"Equip, Furniture And Materials",Building Construction Material
http://thanet.gov.uk/supplierspend,Thanet District Council,18/11/2014,370091,596.70,,Thanet Waste Services Ltd,TWA001,Operational Services,Revenue,Private Contractors,Environmental Services
http://thanet.gov.uk/supplierspend,Thanet District Council,18/11/2014,372648,2883.31,,The Glenwood Hotel,GLE007,Community Services,Revenue,Services,Housing Management
http://thanet.gov.uk/supplierspend,Thanet District Council,18/11/2014,372650,437.49,,The Glenwood Hotel,GLE007,Community Services,Revenue,Services,Housing Management
http://thanet.gov.uk/supplierspend,Thanet District Council,18/11/2014,373167,525.00,,The Gpm Partnership,GPM001,Corporate Resources and S151,Balance Sheet,Plant And Equipment,Consultancy
http://thanet.gov.uk/supplierspend,Thanet District Council,18/11/2014,372856,1300.00,,The Yacht Harbour Association Ltd,YAC001,Operational Services,Revenue,Miscellaneous Expenses,Maritime Services
http://thanet.gov.uk/supplierspend,Thanet District Council,18/11/2014,373133,4922.00,,Trueden Disability Adaptations Ltd,TRU012,Corporate Resources and S151,Balance Sheet,Capital Exp-Non Council Assets,Grants
http://thanet.gov.uk/supplierspend,Thanet District Council,18/11/2014,373152,79694.68,,Uk Power Networks (Operations) Ltd,UKP001,Corporate Resources and S151,Balance Sheet,Other Land And Buildings-Hra,Utilities
http://thanet.gov.uk/supplierspend,Thanet District Council,18/11/2014,372972,283.32,,Viridor Waste Management Ltd,VIR003,Community Services,Revenue,Cleaning & Domestic Supplies,Environmental Services
http://thanet.gov.uk/supplierspend,Thanet District Council,18/11/2014,372618,240.00,,W Brazil & Bros,BRA001,Operational Services,Revenue,Services,Environmental Services
http://thanet.gov.uk/supplierspend,Thanet District Council,18/11/2014,372993,996.92,,Wicksteed Leisure Ltd,WIC002,Operational Services,Revenue,"Repairs,  Alter & Mtce - Build",Sports Playground Equipment
http://thanet.gov.uk/supplierspend,Thanet District Council,19/11/2014,N/A,439.61,,REDACTED PERSONAL DATA,N/A,Operational Services,Revenue,Car Allowances,Non Trade Payee
http://thanet.gov.uk/supplierspend,Thanet District Council,19/11/2014,N/A,336.56,,REDACTED PERSONAL DATA,N/A,Community Services,Revenue,Car Allowances,Non Trade Payee
http://thanet.gov.uk/supplierspend,Thanet District Council,19/11/2014,N/A,312.93,,REDACTED PERSONAL DATA,N/A,Operational Services,Revenue,Car Allowances,Non Trade Payee
http://thanet.gov.uk/supplierspend,Thanet District Council,19/11/2014,N/A,309.15,,REDACTED PERSONAL DATA,N/A,Community Services,Revenue,Car Allowances,Non Trade Payee
http://thanet.gov.uk/supplierspend,Thanet District Council,19/11/2014,N/A,254.32,,REDACTED PERSONAL DATA,N/A,Community Services,Revenue,Car Allowances,Non Trade Payee
http://thanet.gov.uk/supplierspend,Thanet District Council,19/11/2014,N/A,202.69,,REDACTED PERSONAL DATA,N/A,Community Services,Revenue,Car Allowances,Non Trade Payee
http://thanet.gov.uk/supplierspend,Thanet District Council,19/11/2014,N/A,50.68,,REDACTED PERSONAL DATA,N/A,Community Services,Revenue,Car Allowances,Non Trade Payee
http://thanet.gov.uk/supplierspend,Thanet District Council,19/11/2014,N/A,355.47,,REDACTED PERSONAL DATA,N/A,Community Services,Revenue,Car Allowances,Non Trade Payee
http://thanet.gov.uk/supplierspend,Thanet District Council,19/11/2014,N/A,259.99,,REDACTED PERSONAL DATA,N/A,Operational Services,Revenue,Car Allowances,Non Trade Payee
http://thanet.gov.uk/supplierspend,Thanet District Council,19/11/2014,N/A,312.93,,REDACTED PERSONAL DATA,N/A,Operational Services,Revenue,Car Allowances,Non Trade Payee
http://thanet.gov.uk/supplierspend,Thanet District Council,19/11/2014,N/A,346.02,,REDACTED PERSONAL DATA,N/A,Community Services,Revenue,Car Allowances,Non Trade Payee
http://thanet.gov.uk/supplierspend,Thanet District Council,19/11/2014,N/A,8.40,,REDACTED PERSONAL DATA,N/A,Community Services,Revenue,Public Transport,Non Trade Payee
http://thanet.gov.uk/supplierspend,Thanet District Council,19/11/2014,N/A,521.86,,REDACTED PERSONAL DATA,N/A,East Kent Shared Services,Revenue,Car Allowances,Non Trade Payee
http://thanet.gov.uk/supplierspend,Thanet District Council,19/11/2014,N/A,321.44,,REDACTED PERSONAL DATA,N/A,Community Services,Revenue,Car Allowances,Non Trade Payee
http://thanet.gov.uk/supplierspend,Thanet District Council,19/11/2014,N/A,445.28,,REDACTED PERSONAL DATA,N/A,East Kent Shared Services,Revenue,Car Allowances,Non Trade Payee
http://thanet.gov.uk/supplierspend,Thanet District Council,19/11/2014,N/A,371.54,,REDACTED PERSONAL DATA,N/A,East Kent Shared Services,Revenue,Car Allowances,Non Trade Payee
http://thanet.gov.uk/supplierspend,Thanet District Council,25/11/2014,373411,333.00,,4c Offshore Limited,4CO001,Operational Services,Revenue,Miscellaneous Expenses,Facilities And Mangement Serv
http://thanet.gov.uk/supplierspend,Thanet District Council,25/11/2014,372415,1460.00,,A R Twigg & Son Ltd,TWI001,Operational Services,Revenue,"Equip, Furniture And Materials",Cemetery And Crematorium
http://thanet.gov.uk/supplierspend,Thanet District Council,25/11/2014,368466,1800.00,,All Sign Solutions Ltd,ALL002,Community Services,Revenue,"Equip, Furniture And Materials",Building Construction Material
http://thanet.gov.uk/supplierspend,Thanet District Council,25/11/2014,373037,1100.00,,Amber Driver Training,AMB004,Operational Services,Revenue,"Equip, Furniture And Materials",Human Resources
http://thanet.gov.uk/supplierspend,Thanet District Council,25/11/2014,372573,2327.25,,Batcheller Monkhouse,BAT007,Community Services,Revenue,Services,Consultancy
http://thanet.gov.uk/supplierspend,Thanet District Council,25/11/2014,373034,775.00,,Bayly Environmental Services Ltd,BAY001,Operational Services,Revenue,"Repairs,  Alter & Mtce - Build",Environmental Services
http://thanet.gov.uk/supplierspend,Thanet District Council,25/11/2014,372663,341.48,,Caxtons,CAX005,Community Services,Revenue,Rents,Facilities And Mangement Serv
http://thanet.gov.uk/supplierspend,Thanet District Council,25/11/2014,372664,569.10,,Caxtons,CAX005,Community Services,Revenue,Rents,Facilities And Mangement Serv
http://thanet.gov.uk/supplierspend,Thanet District Council,25/11/2014,372894,235.04,,Dennis Eagle Ltd,DEN005,Operational Services,Revenue,Direct Transport Costs,Vehicle Management
http://thanet.gov.uk/supplierspend,Thanet District Council,25/11/2014,372896,477.05,,Dennis Eagle Ltd,DEN005,Operational Services,Revenue,Direct Transport Costs,Vehicle Management
http://thanet.gov.uk/supplierspend,Thanet District Council,25/11/2014,373113,229.88,,Dennis Eagle Ltd,DEN005,Operational Services,Revenue,Direct Transport Costs,Vehicle Management
http://thanet.gov.uk/supplierspend,Thanet District Council,25/11/2014,373114,229.88,,Dennis Eagle Ltd,DEN005,Operational Services,Revenue,Direct Transport Costs,Vehicle Management
http://thanet.gov.uk/supplierspend,Thanet District Council,25/11/2014,373116,1095.74,,Dennis Eagle Ltd,DEN005,Operational Services,Revenue,Direct Transport Costs,Vehicle Management
http://thanet.gov.uk/supplierspend,Thanet District Council,25/11/2014,372458,334.87,,Eyeball Signs,EYE002,Operational Services,Revenue,"Equip, Furniture And Materials",Facilities And Mangement Serv
http://thanet.gov.uk/supplierspend,Thanet District Council,25/11/2014,372682,513.20,,Eyeball Signs,EYE002,Operational Services,Revenue,"Equip, Furniture And Materials",Facilities And Mangement Serv
http://thanet.gov.uk/supplierspend,Thanet District Council,25/11/2014,373546,6615.00,,F10 Studios Ltd,F10001,Operational Services,Revenue,Services,Facilities And Mangement Serv
http://thanet.gov.uk/supplierspend,Thanet District Council,25/11/2014,373547,1200.00,,F10 Studios Ltd,F10001,Operational Services,Revenue,Services,Facilities And Mangement Serv
http://thanet.gov.uk/supplierspend,Thanet District Council,25/11/2014,373541,408.40,,Family Mosaic Housing,FAM001,Corporate Resources and S151,Balance Sheet,Capital Exp-Non Council Assets,Housing Management
http://thanet.gov.uk/supplierspend,Thanet District Council,25/11/2014,373417,375.30,,Global Experience Specialists Ltd,GLO015,Operational Services,Revenue,Miscellaneous Expenses,Utilities
http://thanet.gov.uk/supplierspend,Thanet District Council,25/11/2014,372957,4744.61,,Gloster Furniture Ltd,GLO002,Operational Services,Revenue,"Equip, Furniture And Materials",Highway Equipment And Material
http://thanet.gov.uk/supplierspend,Thanet District Council,25/11/2014,373127,418.50,,Graffiti Removal Ltd,GRA039,Operational Services,Revenue,"Equip, Furniture And Materials",Cleaning And Janitorial
http://thanet.gov.uk/supplierspend,Thanet District Council,25/11/2014,371958,8518.36,,Hr Go Recruitment Ltd,HRG002,Operational Services,Revenue,Agency Staff,Human Resources
http://thanet.gov.uk/supplierspend,Thanet District Council,25/11/2014,372455,8126.46,,Hr Go Recruitment Ltd,HRG002,Operational Services,Revenue,Agency Staff,Human Resources
http://thanet.gov.uk/supplierspend,Thanet District Council,25/11/2014,372969,1129.92,,Hr Go Recruitment Ltd,HRG002,Operational Services,Revenue,Agency Staff,Human Resources
http://thanet.gov.uk/supplierspend,Thanet District Council,25/11/2014,372971,860.20,,Hr Go Recruitment Ltd,HRG002,Operational Services,Revenue,Agency Staff,Human Resources
http://thanet.gov.uk/supplierspend,Thanet District Council,25/11/2014,373373,436.54,,Hr Go Recruitment Ltd,HRG002,Community Services,Revenue,Agency Staff,Human Resources
http://thanet.gov.uk/supplierspend,Thanet District Council,25/11/2014,373544,1950.00,,In Place Of Strife,INP002,Corporate Resources and S151,Revenue,Services,Human Resources
http://thanet.gov.uk/supplierspend,Thanet District Council,25/11/2014,373542,359.70,,John Gale,GAL001,Corporate Resources and S151,Balance Sheet,Capital Exp-Non Council Assets,Grants
http://thanet.gov.uk/supplierspend,Thanet District Council,25/11/2014,373106,7008.50,,Kent County Council (Kcs),KCC003,Community Services,Revenue,Energy Costs,Facilities And Mangement Serv
http://thanet.gov.uk/supplierspend,Thanet District Council,25/11/2014,373107,6852.34,,Kent County Council (Kcs),KCC003,Operational Services,Revenue,Energy Costs,Facilities And Mangement Serv
http://thanet.gov.uk/supplierspend,Thanet District Council,25/11/2014,373108,1982.00,,Kent County Council (Kcs),KCC003,Operational Services,Revenue,Energy Costs,Facilities And Mangement Serv
http://thanet.gov.uk/supplierspend,Thanet District Council,25/11/2014,373412,1261.31,,Kent County Council (Kcs),KCC003,Operational Services,Revenue,Energy Costs,Facilities And Mangement Serv
http://thanet.gov.uk/supplierspend,Thanet District Council,25/11/2014,373413,746.60,,Kent County Council (Kcs),KCC003,Operational Services,Revenue,Energy Costs,Facilities And Mangement Serv
http://thanet.gov.uk/supplierspend,Thanet District Council,25/11/2014,373414,1254.53,,Kent County Council (Kcs),KCC003,Operational Services,Revenue,Energy Costs,Facilities And Mangement Serv
http://thanet.gov.uk/supplierspend,Thanet District Council,25/11/2014,373415,1353.74,,Kent County Council (Kcs),KCC003,Operational Services,Revenue,Energy Costs,Facilities And Mangement Serv
http://thanet.gov.uk/supplierspend,Thanet District Council,25/11/2014,373424,-310.71,,Kent County Council (Kcs),KCC003,Operational Services,Revenue,Energy Costs,Facilities And Mangement Serv
http://thanet.gov.uk/supplierspend,Thanet District Council,25/11/2014,373425,-248.46,,Kent County Council (Kcs),KCC003,Operational Services,Revenue,Energy Costs,Facilities And Mangement Serv
http://thanet.gov.uk/supplierspend,Thanet District Council,25/11/2014,373052,1487.00,,Lakemere Environmental Services Ltd,LAK003,Operational Services,Revenue,"Equip, Furniture And Materials",Environmental Services
http://thanet.gov.uk/supplierspend,Thanet District Council,25/11/2014,373111,2159.00,,Leafleteers Ltd,LEA023,Corporate Resources and S151,Revenue,Services,Facilities And Mangement Serv
http://thanet.gov.uk/supplierspend,Thanet District Council,25/11/2014,373057,450.00,,Ling Metals Limited,LIN004,Operational Services,Revenue,Cleaning & Domestic Supplies,Environmental Services
http://thanet.gov.uk/supplierspend,Thanet District Council,25/11/2014,373102,334.80,,Lister Wilder Limited,LIS002,Operational Services,Revenue,"Equip, Furniture And Materials",Horticultural
http://thanet.gov.uk/supplierspend,Thanet District Council,25/11/2014,373103,14900.00,,Locata (Housing Services) Ltd,LOC015,Community Services,Revenue,Communications & Computing,ICT
http://thanet.gov.uk/supplierspend,Thanet District Council,25/11/2014,373313,387.70,,Lyreco Uk Limited,LYR001,Community Services,Revenue,"Print, Stat And Gen Off Exps",Stationery
http://thanet.gov.uk/supplierspend,Thanet District Council,25/11/2014,373519,797.93,,Lyreco Uk Limited,LYR001,Operational Services,Revenue,"Equip, Furniture And Materials",Stationery
http://thanet.gov.uk/supplierspend,Thanet District Council,25/11/2014,372688,98798.67,,Mears Ltd,MEA003,Community Services,Revenue,"Repairs,  Alter & Mtce - Build",Construction-Repair And Maint
http://thanet.gov.uk/supplierspend,Thanet District Council,25/11/2014,372844,1923.50,,Mears Ltd,MEA003,Community Services,Revenue,"Repairs,  Alter & Mtce - Build",Construction-Repair And Maint
http://thanet.gov.uk/supplierspend,Thanet District Council,25/11/2014,372845,1859.71,,Mears Ltd,MEA003,Community Services,Revenue,"Repairs,  Alter & Mtce - Build",Construction-Repair And Maint
http://thanet.gov.uk/supplierspend,Thanet District Council,25/11/2014,372864,1098.75,,Michael A Smith,SMI044,Corporate Resources and S151,Balance Sheet,Other Land And Buildings-Hra,Consultancy
http://thanet.gov.uk/supplierspend,Thanet District Council,25/11/2014,372855,936.00,,Michael Page Int Recruitment Ltd,PAG008,Corporate Resources and S151,Revenue,Services,Human Resources
http://thanet.gov.uk/supplierspend,Thanet District Council,25/11/2014,372859,4083.75,,Michael Page Int Recruitment Ltd,PAG008,Corporate Resources and S151,Revenue,Services,Human Resources
http://thanet.gov.uk/supplierspend,Thanet District Council,25/11/2014,373118,3267.00,,Michael Page Int Recruitment Ltd,PAG008,Corporate Resources and S151,Revenue,Services,Human Resources
http://thanet.gov.uk/supplierspend,Thanet District Council,25/11/2014,373325,864.00,,Michael Page Int Recruitment Ltd,PAG008,Corporate Resources and S151,Revenue,Services,Human Resources
http://thanet.gov.uk/supplierspend,Thanet District Council,25/11/2014,373120,425.10,,Morgan Jones Ltd,MOR001,Corporate Resources and S151,Revenue,Agency Staff,Human Resources
http://thanet.gov.uk/supplierspend,Thanet District Council,25/11/2014,372185,560.00,,N K F Seymour Electrical Cont,SEY002,Community Services,Revenue,Services,Building Construction Material
http://thanet.gov.uk/supplierspend,Thanet District Council,25/11/2014,372985,424.25,,Ntm-Gb Limited,NTM001,Operational Services,Revenue,Direct Transport Costs,Vehicle Management
http://thanet.gov.uk/supplierspend,Thanet District Council,25/11/2014,373003,1500.00,,Osborne Richardson Limited,OSB009,Community Services,Revenue,Services,Human Resources
http://thanet.gov.uk/supplierspend,Thanet District Council,25/11/2014,373551,500.00,,Pearson Gore,PEA002,Community Services,Revenue,Services,Various Categories
http://thanet.gov.uk/supplierspend,Thanet District Council,25/11/2014,373552,400.00,,Pearson Gore,PEA002,Community Services,Revenue,Services,Various Categories
http://thanet.gov.uk/supplierspend,Thanet District Council,25/11/2014,373545,17570.25,,Pinsent Masons,PIN007,Corporate Resources and S151,Revenue,Services,Legal Services
http://thanet.gov.uk/supplierspend,Thanet District Council,25/11/2014,373031,752.80,,Profile Security Services Limited,PRO018,Corporate Resources and S151,Balance Sheet,Rechargeable Works,Facilities And Mangement Serv
http://thanet.gov.uk/supplierspend,Thanet District Council,25/11/2014,373033,21252.50,,Profile Security Services Limited,PRO018,Operational Services,Revenue,Services,Facilities And Mangement Serv
http://thanet.gov.uk/supplierspend,Thanet District Council,25/11/2014,373387,3043.82,,Royal Mail,ROY004,Community Services,Revenue,Communications & Computing,Mail Services
http://thanet.gov.uk/supplierspend,Thanet District Council,25/11/2014,372873,1317.09,,Sba Ltd,SBA001,Operational Services,Revenue,"Clothes, Uniforms & Laundry",Clothing
http://thanet.gov.uk/supplierspend,Thanet District Council,25/11/2014,372192,3850.00,,Sl Environmental Limited,SLE002,Corporate Resources and S151,Balance Sheet,Other Land And Buildings-Hra,Environmental Services
http://thanet.gov.uk/supplierspend,Thanet District Council,25/11/2014,373083,299.89,,Southern Electric,SEL007,Operational Services,Revenue,Energy Costs,Utilities
http://thanet.gov.uk/supplierspend,Thanet District Council,25/11/2014,373101,1597.07,,Southern Electric,SEL007,Operational Services,Revenue,Energy Costs,Utilities
http://thanet.gov.uk/supplierspend,Thanet District Council,25/11/2014,373475,335.01,,Southern Electric,SEL007,Operational Services,Revenue,Energy Costs,Utilities
http://thanet.gov.uk/supplierspend,Thanet District Council,25/11/2014,373479,264.07,,Southern Electric,SEL007,Operational Services,Revenue,Energy Costs,Utilities
http://thanet.gov.uk/supplierspend,Thanet District Council,25/11/2014,373480,264.07,,Southern Electric,SEL007,Operational Services,Revenue,Energy Costs,Utilities
http://thanet.gov.uk/supplierspend,Thanet District Council,25/11/2014,373482,824.84,,Southern Electric,SEL007,Operational Services,Revenue,Energy Costs,Utilities
http://thanet.gov.uk/supplierspend,Thanet District Council,25/11/2014,373483,800.62,,Southern Electric,SEL007,Operational Services,Revenue,Energy Costs,Utilities
http://thanet.gov.uk/supplierspend,Thanet District Council,25/11/2014,373484,540.18,,Southern Electric,SEL007,Operational Services,Revenue,Energy Costs,Utilities
http://thanet.gov.uk/supplierspend,Thanet District Council,25/11/2014,373486,332.74,,Southern Electric,SEL007,Operational Services,Revenue,Energy Costs,Utilities
http://thanet.gov.uk/supplierspend,Thanet District Council,25/11/2014,373488,241.15,,Southern Electric,SEL007,Operational Services,Revenue,Energy Costs,Utilities
http://thanet.gov.uk/supplierspend,Thanet District Council,25/11/2014,372670,-310.84,,Southern Water,SWA001,Community Services,Revenue,Water Services,Utilities
http://thanet.gov.uk/supplierspend,Thanet District Council,25/11/2014,373080,2140.06,,Southern Water,SWA001,Operational Services,Revenue,Water Services,Utilities
http://thanet.gov.uk/supplierspend,Thanet District Council,25/11/2014,373447,439.31,,Southern Water,SWA001,Operational Services,Revenue,Water Services,Utilities
http://thanet.gov.uk/supplierspend,Thanet District Council,25/11/2014,372646,1100.00,,Sparshatts Of Kent Ltd,SPA008,Operational Services,Revenue,Direct Transport Costs,Vehicle Management
http://thanet.gov.uk/supplierspend,Thanet District Council,25/11/2014,373086,227.52,,Sparshatts Of Kent Ltd,SPA008,Operational Services,Revenue,Direct Transport Costs,Vehicle Management
http://thanet.gov.uk/supplierspend,Thanet District Council,25/11/2014,373088,332.83,,Sparshatts Of Kent Ltd,SPA008,Operational Services,Revenue,Direct Transport Costs,Vehicle Management
http://thanet.gov.uk/supplierspend,Thanet District Council,25/11/2014,372904,519.30,,Thanet Waste Services Ltd,TWA001,Operational Services,Revenue,Private Contractors,Environmental Services
http://thanet.gov.uk/supplierspend,Thanet District Council,25/11/2014,372264,318.50,,The Chartered Inst Of Legal Execs,CHA063,Corporate Resources and S151,Revenue,Employee Related Schemes,Legal Services
http://thanet.gov.uk/supplierspend,Thanet District Council,25/11/2014,372960,2924.97,,The Glenwood Hotel,GLE007,Community Services,Revenue,Services,Housing Management
http://thanet.gov.uk/supplierspend,Thanet District Council,25/11/2014,373393,3024.98,,The Glenwood Hotel,GLE007,Community Services,Revenue,Services,Housing Management
http://thanet.gov.uk/supplierspend,Thanet District Council,25/11/2014,373394,395.83,,The Glenwood Hotel,GLE007,Community Services,Revenue,Services,Housing Management
http://thanet.gov.uk/supplierspend,Thanet District Council,25/11/2014,373311,251.57,,Total Supplies Ltd,TOT009,Corporate Resources and S151,Balance Sheet,Cleaning & Domestic Supplies,Cleaning And Janitorial
http://thanet.gov.uk/supplierspend,Thanet District Council,25/11/2014,372565,1809.94,,Tourism Works,TOU007,Community Services,Revenue,Services,Facilities And Mangement Serv
http://thanet.gov.uk/supplierspend,Thanet District Council,25/11/2014,373124,80.67,,Veolia Es (Uk) Ltd,VEO001,Corporate Resources and S151,Balance Sheet,Rechargeable Works,Environmental Services
http://thanet.gov.uk/supplierspend,Thanet District Council,25/11/2014,373124,2157.50,,Veolia Es (Uk) Ltd,VEO001,Operational Services,Revenue,Cleaning & Domestic Supplies,Environmental Services
http://thanet.gov.uk/supplierspend,Thanet District Council,25/11/2014,372901,270.71,,Viridor Waste Management Ltd,VIR003,Community Services,Revenue,Private Contractors,Environmental Services
http://thanet.gov.uk/supplierspend,Thanet District Council,25/11/2014,373050,550.00,,W Brazil & Bros,BRA001,Corporate Resources and S151,Balance Sheet,Repairs And Mtce Holding A/C,Environmental Services
http://thanet.gov.uk/supplierspend,Thanet District Council,25/11/2014,373051,380.00,,W Brazil & Bros,BRA001,Corporate Resources and S151,Balance Sheet,Repairs And Mtce Holding A/C,Environmental Services
http://thanet.gov.uk/supplierspend,Thanet District Council,25/11/2014,373053,350.00,,W Brazil & Bros,BRA001,Corporate Resources and S151,Balance Sheet,Repairs And Mtce Holding A/C,Environmental Services
http://thanet.gov.uk/supplierspend,Thanet District Council,25/11/2014,373055,560.00,,W Brazil & Bros,BRA001,Corporate Resources and S151,Balance Sheet,Repairs And Mtce Holding A/C,Environmental Services
http://thanet.gov.uk/supplierspend,Thanet District Council,25/11/2014,373058,710.00,,W Brazil & Bros,BRA001,Corporate Resources and S151,Balance Sheet,Repairs And Mtce Holding A/C,Environmental Services
http://thanet.gov.uk/supplierspend,Thanet District Council,25/11/2014,373060,510.00,,W Brazil & Bros,BRA001,Corporate Resources and S151,Balance Sheet,Repairs And Mtce Holding A/C,Environmental Services
http://thanet.gov.uk/supplierspend,Thanet District Council,25/11/2014,373064,1600.00,,W Brazil & Bros,BRA001,Corporate Resources and S151,Balance Sheet,Repairs And Mtce Holding A/C,Environmental Services
http://thanet.gov.uk/supplierspend,Thanet District Council,25/11/2014,373066,900.00,,W Brazil & Bros,BRA001,Corporate Resources and S151,Balance Sheet,Repairs And Mtce Holding A/C,Environmental Services
http://thanet.gov.uk/supplierspend,Thanet District Council,25/11/2014,373067,670.00,,W Brazil & Bros,BRA001,Corporate Resources and S151,Balance Sheet,Repairs And Mtce Holding A/C,Environmental Services
http://thanet.gov.uk/supplierspend,Thanet District Council,25/11/2014,373105,629.23,,Wise Handling Limited,WIS001,Operational Services,Revenue,"Equip, Furniture And Materials",Maritime Services
http://thanet.gov.uk/supplierspend,Thanet District Council,26/11/2014,PC6149,124.00,,Able Group,N/A,Operational Services,Revenue,Services,Environmental Services
http://thanet.gov.uk/supplierspend,Thanet District Council,26/11/2014,372496,484.00,,All Access Ltd,ALL031,Corporate Resources and S151,Balance Sheet,Rechargeable Works,Building Construction Material
http://thanet.gov.uk/supplierspend,Thanet District Council,26/11/2014,372504,334.40,,All Access Ltd,ALL031,Corporate Resources and S151,Balance Sheet,Rechargeable Works,Building Construction Material
http://thanet.gov.uk/supplierspend,Thanet District Council,26/11/2014,PC6156,7.28,1.22,Amazon EU,N/A,Operational Services,Revenue,"Equip, Furniture And Materials",Stationery
http://thanet.gov.uk/supplierspend,Thanet District Council,26/11/2014,PC6093,128.50,21.42,Amazon Marketplace,N/A,Corporate Resources and S151,Revenue,Communications & Computing,Stationery
http://thanet.gov.uk/supplierspend,Thanet District Council,26/11/2014,PC6094,19.95,3.33,Amazon Marketplace,N/A,Corporate Resources and S151,Revenue,Communications & Computing,Stationery
http://thanet.gov.uk/supplierspend,Thanet District Council,26/11/2014,PC6095,13.30,,Amazon Marketplace,N/A,Corporate Resources and S151,Revenue,Communications & Computing,Stationery
http://thanet.gov.uk/supplierspend,Thanet District Council,26/11/2014,PC6096,12.95,2.16,Amazon Marketplace,N/A,Corporate Resources and S151,Revenue,Communications & Computing,Stationery
http://thanet.gov.uk/supplierspend,Thanet District Council,26/11/2014,PC6097,53.28,8.88,Amazon Marketplace,N/A,Corporate Resources and S151,Revenue,Communications & Computing,Stationery
http://thanet.gov.uk/supplierspend,Thanet District Council,26/11/2014,PC6098,12.30,2.05,Amazon Marketplace,N/A,Corporate Resources and S151,Revenue,Communications & Computing,Stationery
http://thanet.gov.uk/supplierspend,Thanet District Council,26/11/2014,PC6099,3.50,0.59,Amazon Marketplace,N/A,Corporate Resources and S151,Revenue,Communications & Computing,Stationery
http://thanet.gov.uk/supplierspend,Thanet District Council,26/11/2014,PC6064,25.95,4.34,Amazon Mktplce EU-UK,N/A,Community Services,Revenue,"Print, Stat And Gen Off Exps",Stationery
http://thanet.gov.uk/supplierspend,Thanet District Council,26/11/2014,PC6157,10.48,1.75,Amazon Mktplce EU-UK,N/A,Operational Services,Revenue,"Equip, Furniture And Materials",Stationery
http://thanet.gov.uk/supplierspend,Thanet District Council,26/11/2014,PC6070,6.93,,Amazon Mktplce EU-UK (Linens Limited),N/A,Operational Services,Revenue,"Equip, Furniture And Materials",Stationery
http://thanet.gov.uk/supplierspend,Thanet District Council,26/11/2014,PC6084,153.86,25.65,Argos,N/A,Operational Services,Revenue,"Equip, Furniture And Materials",Facilities And Management Serv
http://thanet.gov.uk/supplierspend,Thanet District Council,26/11/2014,PC6039,43.99,,Book Your Theory Test,N/A,Operational Services,Revenue,Expenses,Human Resources
http://thanet.gov.uk/supplierspend,Thanet District Council,26/11/2014,PC6043,26.97,,Booker Ltd,N/A,Community Services,Revenue,Catering,Catering
http://thanet.gov.uk/supplierspend,Thanet District Council,26/11/2014,PC6044,11.66,,Booker Ltd,N/A,Operational Services,Revenue,Catering,Catering
http://thanet.gov.uk/supplierspend,Thanet District Council,26/11/2014,PC6045,11.67,,Booker Ltd,N/A,Community Services,Revenue,Catering,Catering
http://thanet.gov.uk/supplierspend,Thanet District Council,26/11/2014,PC6046,11.66,,Booker Ltd,N/A,Operational Services,Revenue,Catering,Catering
http://thanet.gov.uk/supplierspend,Thanet District Council,26/11/2014,PC6047,17.07,,Booker Ltd,N/A,Operational Services,Revenue,Catering,Catering
http://thanet.gov.uk/supplierspend,Thanet District Council,26/11/2014,PC6048,6.38,,Booker Ltd,N/A,Operational Services,Revenue,Catering,Catering
http://thanet.gov.uk/supplierspend,Thanet District Council,26/11/2014,PC6049,27.16,,Booker Ltd,N/A,Community Services,Revenue,Catering,Catering
http://thanet.gov.uk/supplierspend,Thanet District Council,26/11/2014,PC6074,56.13,,Booker Ltd,N/A,Community Services,Revenue,Catering,Catering
http://thanet.gov.uk/supplierspend,Thanet District Council,26/11/2014,PC6126,23.98,,Booker Ltd,N/A,Community Services,Revenue,Catering,Catering
http://thanet.gov.uk/supplierspend,Thanet District Council,26/11/2014,PC6127,6.79,,Booker Ltd,N/A,Community Services,Revenue,Catering,Catering
http://thanet.gov.uk/supplierspend,Thanet District Council,26/11/2014,PC6142,10.99,,Booker Ltd,N/A,Community Services,Revenue,Catering,Catering
http://thanet.gov.uk/supplierspend,Thanet District Council,26/11/2014,PC6143,5.99,,Booker Ltd,N/A,Community Services,Revenue,Catering,Catering
http://thanet.gov.uk/supplierspend,Thanet District Council,26/11/2014,PC6144,5.99,,Booker Ltd,N/A,Community Services,Revenue,Catering,Catering
http://thanet.gov.uk/supplierspend,Thanet District Council,26/11/2014,PC6145,5.99,,Booker Ltd,N/A,Operational Services,Revenue,Catering,Catering
http://thanet.gov.uk/supplierspend,Thanet District Council,26/11/2014,PC6146,17.96,,Booker Ltd,N/A,Operational Services,Revenue,Catering,Catering
http://thanet.gov.uk/supplierspend,Thanet District Council,26/11/2014,PC6147,9.18,,Booker Ltd,N/A,Community Services,Revenue,Catering,Catering
http://thanet.gov.uk/supplierspend,Thanet District Council,26/11/2014,PC6148,2.99,,Booker Ltd,N/A,Community Services,Revenue,Catering,Catering
http://thanet.gov.uk/supplierspend,Thanet District Council,26/11/2014,PC6041,360.83,,Caley Cruises Ltd,N/A,Operational Services,Revenue,"Equip, Furniture And Materials",Maritime Services
http://thanet.gov.uk/supplierspend,Thanet District Council,26/11/2014,372076,858.60,,Carol Peters,PET003,Community Services,Revenue,Services,Agency Payments
http://thanet.gov.uk/supplierspend,Thanet District Council,26/11/2014,372570,1123.20,,Carol Peters,PET003,Community Services,Revenue,Services,Agency Payments
http://thanet.gov.uk/supplierspend,Thanet District Council,26/11/2014,PC6162,114.24,,CIPS.Org,N/A,Corporate Resources and S151,Revenue,Training,Human Resources
http://thanet.gov.uk/supplierspend,Thanet District Council,26/11/2014,PC6057,83.32,,Currys,N/A,Community Services,Revenue,"Equip, Furniture And Materials",Facilities And Management Serv
http://thanet.gov.uk/supplierspend,Thanet District Council,26/11/2014,PC6132,75.00,12.5,DLC Products Ltd,N/A,Operational Services,Revenue,"Print, Stat And Gen Off Exps",Facilities And Management Serv
http://thanet.gov.uk/supplierspend,Thanet District Council,26/11/2014,372965,437.00,,Downfast Demolition & Salvage Ltd,DOW001,Corporate Resources and S151,Balance Sheet,Rechargeable Works,Building Construction Material
http://thanet.gov.uk/supplierspend,Thanet District Council,26/11/2014,PC6019,227.50,,DVLA,N/A,Operational Services,Revenue,Direct Transport Costs,Various Cats-Public Sector
http://thanet.gov.uk/supplierspend,Thanet District Council,26/11/2014,PC6020,227.50,,DVLA,N/A,Operational Services,Revenue,Direct Transport Costs,Various Cats-Public Sector
http://thanet.gov.uk/supplierspend,Thanet District Council,26/11/2014,PC6021,227.50,,DVLA,N/A,Operational Services,Revenue,Direct Transport Costs,Various Cats-Public Sector
http://thanet.gov.uk/supplierspend,Thanet District Council,26/11/2014,PC6022,227.50,,DVLA,N/A,Operational Services,Revenue,Direct Transport Costs,Various Cats-Public Sector
http://thanet.gov.uk/supplierspend,Thanet District Council,26/11/2014,PC6023,227.50,,DVLA,N/A,Operational Services,Revenue,Direct Transport Costs,Various Cats-Public Sector
http://thanet.gov.uk/supplierspend,Thanet District Council,26/11/2014,PC6024,227.50,,DVLA,N/A,Operational Services,Revenue,Direct Transport Costs,Various Cats-Public Sector
http://thanet.gov.uk/supplierspend,Thanet District Council,26/11/2014,PC6025,227.50,,DVLA,N/A,Operational Services,Revenue,Direct Transport Costs,Various Cats-Public Sector
http://thanet.gov.uk/supplierspend,Thanet District Council,26/11/2014,PC6026,227.50,,DVLA,N/A,Operational Services,Revenue,Direct Transport Costs,Various Cats-Public Sector
http://thanet.gov.uk/supplierspend,Thanet District Council,26/11/2014,PC6150,498.24,,Ebuyer,N/A,Corporate Resources and S151,Revenue,Communications & Computing,Stationery
http://thanet.gov.uk/supplierspend,Thanet District Council,26/11/2014,PC6159,15.99,,Ebuyer,N/A,East Kent Shared Services,Revenue,Communications & Computing,Stationery
http://thanet.gov.uk/supplierspend,Thanet District Council,26/11/2014,PC6040,60.00,,Eurotunnel,N/A,Operational Services,Revenue,Public Transport,Human Resources
http://thanet.gov.uk/supplierspend,Thanet District Council,26/11/2014,PC6072,150.00,,F J Rogers,N/A,Community Services,Revenue,"Equip, Furniture And Materials",Facilities And Management Serv
http://thanet.gov.uk/supplierspend,Thanet District Council,26/11/2014,PC6030,123.34,,Grange Hotel,N/A,Operational Services,Revenue,Expenses,Human Resources
http://thanet.gov.uk/supplierspend,Thanet District Council,26/11/2014,PC6129,34.00,,Greggs Margate,N/A,Chief Executive,Revenue,Catering,Catering
http://thanet.gov.uk/supplierspend,Thanet District Council,26/11/2014,373656,2100.00,,H M Revenue & Customs,HMR004,Corporate Resources and S151,Balance Sheet,Council Dwellings,Government Agencies
http://thanet.gov.uk/supplierspend,Thanet District Council,26/11/2014,PC6037,57.00,9.5,Highway Marine Service Ltd,N/A,Operational Services,Revenue,"Equip, Furniture And Materials",Maritime Services
http://thanet.gov.uk/supplierspend,Thanet District Council,26/11/2014,PC6031,39.00,,HM Courts,N/A,East Kent Shared Services,Revenue,Services,Various Cats-Public Sector
http://thanet.gov.uk/supplierspend,Thanet District Council,26/11/2014,PC6032,66.00,,HM Courts,N/A,East Kent Shared Services,Revenue,Services,Various Cats-Public Sector
http://thanet.gov.uk/supplierspend,Thanet District Council,26/11/2014,PC6033,117.00,,HM Courts,N/A,East Kent Shared Services,Revenue,Services,Various Cats-Public Sector
http://thanet.gov.uk/supplierspend,Thanet District Council,26/11/2014,PC6034,1248.00,,HM Courts,N/A,East Kent Shared Services,Revenue,Services,Various Cats-Public Sector
http://thanet.gov.uk/supplierspend,Thanet District Council,26/11/2014,PC6035,1653.00,,HM Courts,N/A,East Kent Shared Services,Revenue,Services,Various Cats-Public Sector
http://thanet.gov.uk/supplierspend,Thanet District Council,26/11/2014,PC6036,849.00,,HM Courts,N/A,East Kent Shared Services,Revenue,Services,Various Cats-Public Sector
http://thanet.gov.uk/supplierspend,Thanet District Council,26/11/2014,PC6133,75.00,,HM Courts,N/A,East Kent Shared Services,Revenue,Services,Various Cats-Public Sector
http://thanet.gov.uk/supplierspend,Thanet District Council,26/11/2014,PC6134,1434.00,,HM Courts,N/A,East Kent Shared Services,Revenue,Services,Various Cats-Public Sector
http://thanet.gov.uk/supplierspend,Thanet District Council,26/11/2014,PC6135,2535.00,,HM Courts,N/A,East Kent Shared Services,Revenue,Services,Various Cats-Public Sector
http://thanet.gov.uk/supplierspend,Thanet District Council,26/11/2014,PC6136,798.00,,HM Courts,N/A,East Kent Shared Services,Revenue,Services,Various Cats-Public Sector
http://thanet.gov.uk/supplierspend,Thanet District Council,26/11/2014,PC6137,66.00,,HM Courts,N/A,East Kent Shared Services,Revenue,Services,Various Cats-Public Sector
http://thanet.gov.uk/supplierspend,Thanet District Council,26/11/2014,PC6138,39.00,,HM Courts,N/A,East Kent Shared Services,Revenue,Services,Various Cats-Public Sector
http://thanet.gov.uk/supplierspend,Thanet District Council,26/11/2014,PC6139,78.00,,HM Courts,N/A,East Kent Shared Services,Revenue,Services,Various Cats-Public Sector
http://thanet.gov.uk/supplierspend,Thanet District Council,26/11/2014,PC5942,103.33,,Holiday Inn Leicester,N/A,Corporate Resources and S151,Revenue,Training,Human Resources
http://thanet.gov.uk/supplierspend,Thanet District Council,26/11/2014,PC6083,168.00,,Hollywood Displays Ltd,N/A,Corporate Resources and S151,Revenue,Miscellaneous Expenses,Facilities And Management Serv
http://thanet.gov.uk/supplierspend,Thanet District Council,26/11/2014,PC6128,198.23,,ISO,N/A,East Kent Shared Services,Revenue,Communications & Computing,ICT
http://thanet.gov.uk/supplierspend,Thanet District Council,26/11/2014,PC6140,75.70,,London Midland,N/A,Corporate Resources and S151,Revenue,Public Transport,Human Resources
http://thanet.gov.uk/supplierspend,Thanet District Council,26/11/2014,PC6092,110.00,,London Midlands,N/A,East Kent Shared Services,Revenue,Public Transport,Human Resources
http://thanet.gov.uk/supplierspend,Thanet District Council,26/11/2014,PC6060,16.00,,London Midlands Trains,N/A,Operational Services,Revenue,Public Transport,Human Resources
http://thanet.gov.uk/supplierspend,Thanet District Council,26/11/2014,PC6076,6.50,0.2,Marks & Spencer,N/A,Operational Services,Revenue,"Equip, Furniture And Materials",Facilities And Management Serv
http://thanet.gov.uk/supplierspend,Thanet District Council,26/11/2014,PC6110,163.97,,Martins Hotels,N/A,Operational Services,Revenue,Expenses,Human Resources
http://thanet.gov.uk/supplierspend,Thanet District Council,26/11/2014,372685,13480.70,,Mears Ltd,MEA003,Corporate Resources and S151,Balance Sheet,Repairs And Mtce Holding A/C,Construction-Repair And Maint
http://thanet.gov.uk/supplierspend,Thanet District Council,26/11/2014,372686,11105.92,,Mears Ltd,MEA003,Corporate Resources and S151,Balance Sheet,Repairs And Mtce Holding A/C,Construction-Repair And Maint
http://thanet.gov.uk/supplierspend,Thanet District Council,26/11/2014,372687,5282.58,,Mears Ltd,MEA003,Corporate Resources and S151,Balance Sheet,Repairs And Mtce Holding A/C,Construction-Repair And Maint
http://thanet.gov.uk/supplierspend,Thanet District Council,26/11/2014,373322,70326.59,,Mears Ltd,MEA003,Corporate Resources and S151,Balance Sheet,Repairs And Mtce Holding A/C,Construction-Repair And Maint
http://thanet.gov.uk/supplierspend,Thanet District Council,26/11/2014,373454,1242.94,,Mears Ltd,MEA003,Corporate Resources and S151,Balance Sheet,Repairs And Mtce Holding A/C,Construction-Repair And Maint
http://thanet.gov.uk/supplierspend,Thanet District Council,26/11/2014,373455,1019.11,,Mears Ltd,MEA003,Corporate Resources and S151,Balance Sheet,Repairs And Mtce Holding A/C,Construction-Repair And Maint
http://thanet.gov.uk/supplierspend,Thanet District Council,26/11/2014,373456,8714.82,,Mears Ltd,MEA003,Corporate Resources and S151,Balance Sheet,Repairs And Mtce Holding A/C,Construction-Repair And Maint
http://thanet.gov.uk/supplierspend,Thanet District Council,26/11/2014,PC6130,4.58,,Morrisons (Margate),N/A,Chief Executive,Revenue,Catering,Catering
http://thanet.gov.uk/supplierspend,Thanet District Council,26/11/2014,PC6131,8.69,,Morrisons (Margate),N/A,Chief Executive,Revenue,Catering,Catering
http://thanet.gov.uk/supplierspend,Thanet District Council,26/11/2014,PC6161,-0.70,,Morrisons (Margate),N/A,Chief Executive,Revenue,Catering,Catering
http://thanet.gov.uk/supplierspend,Thanet District Council,26/11/2014,PC6101,47.50,,Paypal - W J Bennett,N/A,Operational Services,Revenue,"Print, Stat And Gen Off Exps",Catering
http://thanet.gov.uk/supplierspend,Thanet District Council,26/11/2014,PC6113,20.00,3.34,Peacocks,N/A,Operational Services,Revenue,"Clothes, Uniforms & Laundry",Clothing
http://thanet.gov.uk/supplierspend,Thanet District Council,26/11/2014,PC6107,20.00,3.34,Peacocks Stores Ltd,N/A,Operational Services,Revenue,"Clothes, Uniforms & Laundry",Clothing
http://thanet.gov.uk/supplierspend,Thanet District Council,26/11/2014,PC6111,110.00,,Possession Claims On Line,N/A,Community Services,Revenue,Services,Various Cats-Public Sector
http://thanet.gov.uk/supplierspend,Thanet District Council,26/11/2014,PC6038,250.00,,Possession Claims Online,N/A,Community Services,Revenue,Services,Various Cats-Public Sector
http://thanet.gov.uk/supplierspend,Thanet District Council,26/11/2014,PC6100,250.00,,Possession Claims Online,N/A,Community Services,Revenue,Services,Various Cats-Public Sector
http://thanet.gov.uk/supplierspend,Thanet District Council,26/11/2014,PC6112,110.00,,Possession Claims Online,N/A,Community Services,Revenue,Services,Various Cats-Public Sector
http://thanet.gov.uk/supplierspend,Thanet District Council,26/11/2014,PC6115,250.00,,Possession Claims Online,N/A,Community Services,Revenue,Services,Various Cats-Public Sector
http://thanet.gov.uk/supplierspend,Thanet District Council,26/11/2014,PC6042,97.28,,Prokart Engine Parts,N/A,Operational Services,Revenue,"Equip, Furniture And Materials",Vehicle Management
http://thanet.gov.uk/supplierspend,Thanet District Council,26/11/2014,PC6106,40.82,,Prokart Engine Parts,N/A,Operational Services,Revenue,"Print, Stat And Gen Off Exps",Vehicle Management
http://thanet.gov.uk/supplierspend,Thanet District Council,26/11/2014,PC6158,150.00,,RH Environmental,N/A,Community Services,Revenue,Expenses,Human Resources
http://thanet.gov.uk/supplierspend,Thanet District Council,26/11/2014,PC6058,100.00,,Safety And Management Solutions,N/A,Community Services,Revenue,Expenses,Human Resources
http://thanet.gov.uk/supplierspend,Thanet District Council,26/11/2014,PC6141,31.48,,Screwfix Direct Ltd,N/A,Community Services,Revenue,"Equip, Furniture And Materials",Building Construction Materials
http://thanet.gov.uk/supplierspend,Thanet District Council,26/11/2014,PC6071,195.00,,Skip Nets Uk Ltd,N/A,Operational Services,Revenue,"Equip, Furniture And Materials",Environmental Services
http://thanet.gov.uk/supplierspend,Thanet District Council,26/11/2014,PC6103,27.10,,Southeastern Rail,N/A,Chief Executive,Revenue,Public Transport,Human Resources
http://thanet.gov.uk/supplierspend,Thanet District Council,26/11/2014,PC6104,25.70,,Southeastern Rail,N/A,Chief Executive,Revenue,Public Transport,Human Resources
http://thanet.gov.uk/supplierspend,Thanet District Council,26/11/2014,PC6082,227.50,,Studios 2 Let Ltd,N/A,Corporate Resources and S151,Revenue,Training,Human Resources
http://thanet.gov.uk/supplierspend,Thanet District Council,26/11/2014,PC6108,79.95,,T&W Linen Co.,N/A,Community Services,Revenue,"Equip, Furniture And Materials",Facilities And Management Serv
http://thanet.gov.uk/supplierspend,Thanet District Council,26/11/2014,PC6066,354.94,,Tea Commerce,N/A,Community Services,Revenue,Communications & Computing,ICT
http://thanet.gov.uk/supplierspend,Thanet District Council,26/11/2014,PC6056,110.00,,Thanet County Court,N/A,Community Services,Revenue,Services,Various Cats-Public Sector
http://thanet.gov.uk/supplierspend,Thanet District Council,26/11/2014,PC6085,100.00,,Thanet County Court,N/A,Community Services,Revenue,Services,Various Cats-Public Sector
http://thanet.gov.uk/supplierspend,Thanet District Council,26/11/2014,PC6116,110.00,,Thanet County Court,N/A,Community Services,Revenue,Services,Various Cats-Public Sector
http://thanet.gov.uk/supplierspend,Thanet District Council,26/11/2014,PC6117,100.00,,Thanet County Court,N/A,East Kent Shared Services,Revenue,Services,Various Cats-Public Sector
http://thanet.gov.uk/supplierspend,Thanet District Council,26/11/2014,PC6151,40.84,,The Pilgrims Hotel,N/A,East Kent Shared Services,Revenue,Catering,Human Resources
http://thanet.gov.uk/supplierspend,Thanet District Council,26/11/2014,373550,8810.30,,The Ramsgate Society,RAM003,Corporate Resources and S151,Balance Sheet,Capital Exp-Non Council Assets,Grants
http://thanet.gov.uk/supplierspend,Thanet District Council,26/11/2014,PC6123,13.78,,Toolstation,N/A,Community Services,Revenue,"Equip, Furniture And Materials",Building Construction Materials
http://thanet.gov.uk/supplierspend,Thanet District Council,26/11/2014,PC6124,36.69,,Toolstation,N/A,Community Services,Revenue,"Equip, Furniture And Materials",Building Construction Materials
http://thanet.gov.uk/supplierspend,Thanet District Council,26/11/2014,PC6125,11.55,,Toolstation,N/A,Community Services,Revenue,"Equip, Furniture And Materials",Building Construction Materials
http://thanet.gov.uk/supplierspend,Thanet District Council,26/11/2014,PC6122,33.74,,Total Supplies,N/A,Community Services,Revenue,"Equip, Furniture And Materials",Cleaning And Janitorial
http://thanet.gov.uk/supplierspend,Thanet District Council,26/11/2014,PC6118,62.83,,Trainline,N/A,Corporate Resources and S151,Revenue,Public Transport,Human Resources
http://thanet.gov.uk/supplierspend,Thanet District Council,26/11/2014,PC6087,30.54,,Travelodge,N/A,Operational Services,Revenue,"Equip, Furniture And Materials",Human Resources
http://thanet.gov.uk/supplierspend,Thanet District Council,26/11/2014,PC6088,28.87,,Travelodge,N/A,Operational Services,Revenue,"Equip, Furniture And Materials",Human Resources
http://thanet.gov.uk/supplierspend,Thanet District Council,26/11/2014,PC6077,145.50,,TV Licencing,N/A,Community Services,Revenue,Services,Various Cats-Public Sector
http://thanet.gov.uk/supplierspend,Thanet District Council,26/11/2014,PC6073,145.50,,TV Licensing,N/A,Operational Services,Revenue,Services,Various Cats-Public Sector
http://thanet.gov.uk/supplierspend,Thanet District Council,26/11/2014,PC6065,123.50,,Virgin Trains,N/A,Operational Services,Revenue,Public Transport,Human Resources
http://thanet.gov.uk/supplierspend,Thanet District Council,26/11/2014,PC6080,89.75,,Virgin Trains,N/A,Corporate Resources and S151,Revenue,Public Transport,Human Resources
http://thanet.gov.uk/supplierspend,Thanet District Council,26/11/2014,PC6109,34.00,,Virgin Trains,N/A,Operational Services,Revenue,Public Transport,Human Resources
http://thanet.gov.uk/supplierspend,Thanet District Council,26/11/2014,PC6018,62.60,,Webtis,N/A,Corporate Resources and S151,Revenue,Public Transport,Human Resources
http://thanet.gov.uk/supplierspend,Thanet District Council,26/11/2014,PC6059,60.10,,Webtis,N/A,Corporate Resources and S151,Revenue,Public Transport,Human Resources
http://thanet.gov.uk/supplierspend,Thanet District Council,26/11/2014,PC6061,70.60,,Webtis,N/A,Operational Services,Revenue,Public Transport,Human Resources
http://thanet.gov.uk/supplierspend,Thanet District Council,26/11/2014,PC6062,61.10,,Webtis,N/A,Corporate Resources and S151,Revenue,Public Transport,Human Resources
http://thanet.gov.uk/supplierspend,Thanet District Council,26/11/2014,PC6063,69.60,,Webtis,N/A,East Kent Shared Services,Revenue,Public Transport,Human Resources
http://thanet.gov.uk/supplierspend,Thanet District Council,26/11/2014,PC6067,44.20,,Webtis,N/A,Community Services,Revenue,Public Transport,Human Resources
http://thanet.gov.uk/supplierspend,Thanet District Council,26/11/2014,PC6068,294.20,,Webtis,N/A,East Kent Shared Services,Revenue,Public Transport,Human Resources
http://thanet.gov.uk/supplierspend,Thanet District Council,26/11/2014,PC6069,52.60,,Webtis,N/A,Corporate Resources and S151,Revenue,Public Transport,Human Resources
http://thanet.gov.uk/supplierspend,Thanet District Council,26/11/2014,PC6078,77.20,,Webtis,N/A,Operational Services,Revenue,Public Transport,Human Resources
http://thanet.gov.uk/supplierspend,Thanet District Council,26/11/2014,PC6079,49.80,,Webtis,N/A,Corporate Resources and S151,Revenue,Public Transport,Human Resources
http://thanet.gov.uk/supplierspend,Thanet District Council,26/11/2014,PC6086,75.20,,Webtis,N/A,Corporate Resources and S151,Revenue,Public Transport,Human Resources
http://thanet.gov.uk/supplierspend,Thanet District Council,26/11/2014,PC6090,54.50,,Webtis,N/A,East Kent Shared Services,Revenue,Public Transport,Human Resources
http://thanet.gov.uk/supplierspend,Thanet District Council,26/11/2014,PC6091,150.40,,Webtis,N/A,East Kent Shared Services,Revenue,Public Transport,Human Resources
http://thanet.gov.uk/supplierspend,Thanet District Council,26/11/2014,PC6105,27.80,,Webtis,N/A,Community Services,Revenue,Public Transport,Human Resources
http://thanet.gov.uk/supplierspend,Thanet District Council,26/11/2014,PC6114,237.20,,Webtis,N/A,Community Services,Revenue,Public Transport,Human Resources
http://thanet.gov.uk/supplierspend,Thanet District Council,26/11/2014,PC6119,44.00,,Webtis,N/A,Community Services,Revenue,Public Transport,Human Resources
http://thanet.gov.uk/supplierspend,Thanet District Council,26/11/2014,PC6120,65.80,,Webtis,N/A,Operational Services,Revenue,Public Transport,Human Resources
http://thanet.gov.uk/supplierspend,Thanet District Council,26/11/2014,PC6154,-22.50,,Webtis,N/A,Corporate Resources and S151,Revenue,Public Transport,Human Resources
http://thanet.gov.uk/supplierspend,Thanet District Council,26/11/2014,PC6155,-22.00,,Webtis,N/A,Corporate Resources and S151,Revenue,Public Transport,Human Resources
http://thanet.gov.uk/supplierspend,Thanet District Council,26/11/2014,PC6089,5.50,,WH Smith,N/A,Operational Services,Revenue,"Equip, Furniture And Materials",Stationery
http://thanet.gov.uk/supplierspend,Thanet District Council,26/11/2014,PC6081,23.58,,Wickes,N/A,Operational Services,Revenue,"Print, Stat And Gen Off Exps",Building Construction Materials
http://thanet.gov.uk/supplierspend,Thanet District Council,26/11/2014,PC6121,3.50,0.59,Wilko Retail Ltd,N/A,Operational Services,Revenue,"Print, Stat And Gen Off Exps",Facilities And Management Serv
http://thanet.gov.uk/supplierspend,Thanet District Council,26/11/2014,PC6102,120.00,,WP-CII Training Tech (Unicorn Training Group Ltd),N/A,Corporate Resources and S151,Revenue,Training,Human Resources
http://thanet.gov.uk/supplierspend,Thanet District Council,28/11/2014,373657,130000.00,,Daniel & Edwards Solicitors,DAN011,Corporate Resources and S151,Balance Sheet,Council Dwellings,Non Trade Payee
http://thanet.gov.uk/supplierspend,Thanet District Council,28/11/2014,373665,273.00,,H M Land Registry,HML002,Community Services,Revenue,Services,Government Agencies
http://thanet.gov.uk/supplierspend,Thanet District Council,28/11/2014,373665,6.00,,H M Land Registry,HML002,East Kent Shared Services,Revenue,Services,Government Agencies
http://thanet.gov.uk/supplierspend,Thanet District Council,28/11/2014,373679,268.91,,Nat West Bank,NWE001,Corporate Resources and S151,Revenue,Services,Various Categories
http://thanet.gov.uk/supplierspend,Thanet District Council,28/11/2014,373660,13200.49,,Public Works Loan Board,PWL001,Corporate Resources and S151,Balance Sheet,Debit Interest And Expenses,Investments And Loans
http://thanet.gov.uk/supplierspend,Thanet District Council,28/11/2014,373768,196428.57,,Public Works Loan Board,PWL001,Corporate Resources and S151,Balance Sheet,Borrowing Repayable>1 Yr,Investments And Loans
http://thanet.gov.uk/supplierspend,Thanet District Council,28/11/2014,373768,30530.18,,Public Works Loan Board,PWL001,Corporate Resources and S151,Balance Sheet,Debit Interest And Expenses,Investments And Loans
http://thanet.gov.uk/supplierspend,Thanet District Council,28/11/2014,373675,1966.24,,Santander,SAN017,Corporate Resources and S151,Revenue,Services,Various Categories
http://thanet.gov.uk/supplierspend,Thanet District Council,28/11/2014,373675,655.42,,Santander,SAN017,Community Services,Revenue,Services,Various Categories
http://thanet.gov.uk/supplierspend,Thanet District Council,28/11/2014,373676,855.00,,Santander,SAN017,Corporate Resources and S151,Revenue,Services,Various Categories
http://thanet.gov.uk/supplierspend,Thanet District Council,28/11/2014,373770,2501048.00,,Secretary Of State,SEC003,Corporate Resources and S151,Balance Sheet,Business Rates Retention,Government Agencies
http://thanet.gov.uk/supplierspend,Thanet District Council,28/11/2014,373681,1848.66,,Worldpay Ltd,WOR008,Corporate Resources and S151,Revenue,Services,Financial Services
http://thanet.gov.uk/supplierspend,Thanet District Council,28/11/2014,373683,1657.84,,Worldpay Ltd,WOR008,Corporate Resources and S151,Revenue,Services,Financial Services
http://thanet.gov.uk/supplierspend,Thanet District Council,28/11/2014,373686,291.07,,Worldpay Ltd,WOR008,Corporate Resources and S151,Revenue,Services,Financial Services
